Workbook

Sheet Instructions
B1: Updated : 2025-05-07
B2: INSTRUCTIONS
B4: RUN CHART
B5: 1. Click on the cell to the right of the word "Product:", then click on the arrow that appears and select the product that you want.
B6: 2. The chart will draw a scale on the side and the white, yellow, and the red plotting area based on the refractive reading for a usual percent concentration range and target concentration.
B7: (Customize the Run Chart to fit your operating parameters by simply changing the Percent Concentration: Min, Target, and Max numbers in the GREEN boxes)
B8: 3. Print the chart and post it on your machine.
B9: 4. Plot the Refractive Reading of the sump everyday. Stay in the white zone close to the target Refractive Reading.
B29: MAKEUP CHART
B30: 1. Select the product the same way you did on the RUN CHART.
B31: 2. There is an additional feature to select a makeup factor (0.1 - 1.0). A typical makeup factor is about "0.4".
B32: (Meaning that you only need a coolant concentrate that is about 4/10 what you need for a first charge of a sump)
B33: (Customize the Makeup chart to fit your makeup operating parameters by simply clicking on cell to the right of the “makeup factor” and choose the factor from the drop down list.)
B34: 3. The chart will draw a scale on the side and the white, yellow, and the red plotting area.
B35: 4. Print the chart and post it on your machine or by your makeup coolant supply.
B36: 5. Plot the Refractive Reading of the machine’s or system’s makeup everyday. Adjust your makeup concentration to keep your COOLANT CONCENTRATION within your operating parameters. If the coolant concentration is going up, you need to adjust your makeup concentration down. If the coolant concentration is going down you need to adjust your makeup concentration up.
B38: (See our online Makeup Calculator App for more information about calculating your specific needs - https://apps.masterfluidsolutions.com/makeup/)

Sheet Run Chart
H1: TRIM® RUN CHART | AL1: Techline Assistance: 800-537-3365
AL2: info@masterchemical.com
AL4: Min | AN4: Target | AR4: Max
B5: Product: | F5: TRIM® HyperSol™ 888NXT | S5: Brix: | V5: =VLOOKUP($F$5, 'Math-DO-NOT-Delete'!$A$2:$G$50,2,FALSE) -> 2.2 | X5: Percent Concentration: | AL5: =VLOOKUP($F$5, 'Math-DO-NOT-Delete'!$A$2:$G$50,5, FALSE) -> 5 | AN5: =VLOOKUP($F$5, 'Math-DO-NOT-Delete'!$A$2:$G$50,6, FALSE) -> 8 | AR5: =VLOOKUP($F$5, 'Math-DO-NOT-Delete'!$A$2:$G$50,7, FALSE) -> 12 | AT5: Company:
B6: Step: | D6: =ROUNDUP((($AR$6-$AL$6)*'Math-DO-NOT-Delete'!I2)/'Math-DO-NOT-Delete'!I3,1) -> 0.3 | E6: Check Refractometer Reading and Top Off Daily | X6: Refractometer Reading: | AL6: =AL5/$V5 -> 2.272727273 | AN6: =ROUNDUP((AN5/$V5),1) -> 3.7 | AR6: =AR5/$V5 -> 5.454545455 | AT6: Machine:
D7: =D9 +$D$6 -> 7.6 | E7: =$D7 -> 7.6 | F7: 7.6 | G7: 7.6 | H7: 7.6 | I7: 7.6 | J7: 7.6 | K7: 7.6 | L7: 7.6 | M7: 7.6 | N7: 7.6 | O7: 7.6 | P7: 7.6 | Q7: 7.6 | R7: 7.6 | S7: 7.6 | T7: 7.6 | U7: =$D7 -> 7.6 | V7: 7.6 | W7: 7.6 | X7: 7.6 | Y7: 7.6 | Z7: 7.6 | AA7: 7.6 | AB7: 7.6 | AC7: 7.6 | AD7: 7.6 | AE7: 7.6 | AF7: 7.6 | AG7: 7.6 | AH7: 7.6 | AI7: 7.6 | AJ7: 7.6 | AK7: 7.6 | AL7: 7.6 | AM7: 7.6 | AN7: 7.6 | AO7: 7.6 | AP7: 7.6 | AQ7: 7.6 | AR7: 7.6 | AS7: 7.6 | AT7: 7.6 | AU7: 7.6 | AV7: 7.6 | AW7: 7.6 | AX7: 7.6 | AY7: 7.6 | AZ7: 7.6 | BA7: 7.6 | BB7: 7.6 | BC7: 7.6 | BD7: 7.6 | BE7: 7.6 | BF7: 7.6 | BG7: 7.6 | BH7: 7.6 | BI7: 7.6 | BJ7: 7.6 | BK7: 7.6 | BL7: 7.6 | BM7: 7.6 | BN7: 7.6
E8: =$D7-$D$6*0.5 -> 7.45 | F8: 7.45 | G8: 7.45 | H8: 7.45 | I8: 7.45 | J8: 7.45 | K8: 7.45 | L8: 7.45 | M8: 7.45 | N8: 7.45 | O8: 7.45 | P8: 7.45 | Q8: 7.45 | R8: 7.45 | S8: 7.45 | T8: 7.45 | U8: 7.45 | V8: 7.45 | W8: 7.45 | X8: 7.45 | Y8: 7.45 | Z8: 7.45 | AA8: 7.45 | AB8: 7.45 | AC8: 7.45 | AD8: 7.45 | AE8: 7.45 | AF8: 7.45 | AG8: 7.45 | AH8: 7.45 | AI8: 7.45 | AJ8: 7.45 | AK8: 7.45 | AL8: 7.45 | AM8: 7.45 | AN8: 7.45 | AO8: 7.45 | AP8: 7.45 | AQ8: 7.45 | AR8: 7.45 | AS8: 7.45 | AT8: 7.45 | AU8: 7.45 | AV8: 7.45 | AW8: 7.45 | AX8: 7.45 | AY8: 7.45 | AZ8: 7.45 | BA8: 7.45 | BB8: 7.45 | BC8: 7.45 | BD8: 7.45 | BE8: 7.45 | BF8: 7.45 | BG8: 7.45 | BH8: 7.45 | BI8: 7.45 | BJ8: 7.45 | BK8: 7.45 | BL8: 7.45 | BM8: 7.45 | BN8: 7.45
D9: =D11 +$D$6 -> 7.3 | E9: 7.3 | F9: 7.3 | G9: 7.3 | H9: 7.3 | I9: 7.3 | J9: 7.3 | K9: 7.3 | L9: 7.3 | M9: 7.3 | N9: 7.3 | O9: 7.3 | P9: 7.3 | Q9: 7.3 | R9: 7.3 | S9: 7.3 | T9: 7.3 | U9: 7.3 | V9: 7.3 | W9: 7.3 | X9: 7.3 | Y9: 7.3 | Z9: 7.3 | AA9: 7.3 | AB9: 7.3 | AC9: 7.3 | AD9: 7.3 | AE9: 7.3 | AF9: 7.3 | AG9: 7.3 | AH9: 7.3 | AI9: 7.3 | AJ9: 7.3 | AK9: 7.3 | AL9: 7.3 | AM9: 7.3 | AN9: 7.3 | AO9: 7.3 | AP9: 7.3 | AQ9: 7.3 | AR9: 7.3 | AS9: 7.3 | AT9: 7.3 | AU9: 7.3 | AV9: 7.3 | AW9: 7.3 | AX9: 7.3 | AY9: 7.3 | AZ9: 7.3 | BA9: 7.3 | BB9: 7.3 | BC9: 7.3 | BD9: 7.3 | BE9: 7.3 | BF9: 7.3 | BG9: 7.3 | BH9: 7.3 | BI9: 7.3 | BJ9: 7.3 | BK9: 7.3 | BL9: 7.3 | BM9: 7.3 | BN9: 7.3
E10: =$D9-$D$6*0.5 -> 7.15 | F10: 7.15 | G10: 7.15 | H10: 7.15 | I10: 7.15 | J10: 7.15 | K10: 7.15 | L10: 7.15 | M10: 7.15 | N10: 7.15 | O10: 7.15 | P10: 7.15 | Q10: 7.15 | R10: 7.15 | S10: 7.15 | T10: 7.15 | U10: 7.15 | V10: 7.15 | W10: 7.15 | X10: 7.15 | Y10: 7.15 | Z10: 7.15 | AA10: 7.15 | AB10: 7.15 | AC10: 7.15 | AD10: 7.15 | AE10: 7.15 | AF10: 7.15 | AG10: 7.15 | AH10: 7.15 | AI10: 7.15 | AJ10: 7.15 | AK10: 7.15 | AL10: 7.15 | AM10: 7.15 | AN10: 7.15 | AO10: 7.15 | AP10: 7.15 | AQ10: 7.15 | AR10: 7.15 | AS10: 7.15 | AT10: 7.15 | AU10: 7.15 | AV10: 7.15 | AW10: 7.15 | AX10: 7.15 | AY10: 7.15 | AZ10: 7.15 | BA10: 7.15 | BB10: 7.15 | BC10: 7.15 | BD10: 7.15 | BE10: 7.15 | BF10: 7.15 | BG10: 7.15 | BH10: 7.15 | BI10: 7.15 | BJ10: 7.15 | BK10: 7.15 | BL10: 7.15 | BM10: 7.15 | BN10: 7.15
D11: =D13 +$D$6 -> 7 | E11: 7 | F11: 7 | G11: 7 | H11: 7 | I11: 7 | J11: 7 | K11: 7 | L11: 7 | M11: 7 | N11: 7 | O11: 7 | P11: 7 | Q11: 7 | R11: 7 | S11: 7 | T11: 7 | U11: 7 | V11: 7 | W11: 7 | X11: 7 | Y11: 7 | Z11: 7 | AA11: 7 | AB11: 7 | AC11: 7 | AD11: 7 | AE11: 7 | AF11: 7 | AG11: 7 | AH11: 7 | AI11: 7 | AJ11: 7 | AK11: 7 | AL11: 7 | AM11: 7 | AN11: 7 | AO11: 7 | AP11: 7 | AQ11: 7 | AR11: 7 | AS11: 7 | AT11: 7 | AU11: 7 | AV11: 7 | AW11: 7 | AX11: 7 | AY11: 7 | AZ11: 7 | BA11: 7 | BB11: 7 | BC11: 7 | BD11: 7 | BE11: 7 | BF11: 7 | BG11: 7 | BH11: 7 | BI11: 7 | BJ11: 7 | BK11: 7 | BL11: 7 | BM11: 7 | BN11: 7
E12: =$D11-$D$6*0.5 -> 6.85 | F12: 6.85 | G12: 6.85 | H12: 6.85 | I12: 6.85 | J12: 6.85 | K12: 6.85 | L12: 6.85 | M12: 6.85 | N12: 6.85 | O12: 6.85 | P12: 6.85 | Q12: 6.85 | R12: 6.85 | S12: 6.85 | T12: 6.85 | U12: 6.85 | V12: 6.85 | W12: 6.85 | X12: 6.85 | Y12: 6.85 | Z12: 6.85 | AA12: 6.85 | AB12: 6.85 | AC12: 6.85 | AD12: 6.85 | AE12: 6.85 | AF12: 6.85 | AG12: 6.85 | AH12: 6.85 | AI12: 6.85 | AJ12: 6.85 | AK12: 6.85 | AL12: 6.85 | AM12: 6.85 | AN12: 6.85 | AO12: 6.85 | AP12: 6.85 | AQ12: 6.85 | AR12: 6.85 | AS12: 6.85 | AT12: 6.85 | AU12: 6.85 | AV12: 6.85 | AW12: 6.85 | AX12: 6.85 | AY12: 6.85 | AZ12: 6.85 | BA12: 6.85 | BB12: 6.85 | BC12: 6.85 | BD12: 6.85 | BE12: 6.85 | BF12: 6.85 | BG12: 6.85 | BH12: 6.85 | BI12: 6.85 | BJ12: 6.85 | BK12: 6.85 | BL12: 6.85 | BM12: 6.85 | BN12: 6.85
D13: =D15 +$D$6 -> 6.7 | E13: 6.7 | F13: 6.7 | G13: 6.7 | H13: 6.7 | I13: 6.7 | J13: 6.7 | K13: 6.7 | L13: 6.7 | M13: 6.7 | N13: 6.7 | O13: 6.7 | P13: 6.7 | Q13: 6.7 | R13: 6.7 | S13: 6.7 | T13: 6.7 | U13: 6.7 | V13: 6.7 | W13: 6.7 | X13: 6.7 | Y13: 6.7 | Z13: 6.7 | AA13: 6.7 | AB13: 6.7 | AC13: 6.7 | AD13: 6.7 | AE13: 6.7 | AF13: 6.7 | AG13: 6.7 | AH13: 6.7 | AI13: 6.7 | AJ13: 6.7 | AK13: 6.7 | AL13: 6.7 | AM13: 6.7 | AN13: 6.7 | AO13: 6.7 | AP13: 6.7 | AQ13: 6.7 | AR13: 6.7 | AS13: 6.7 | AT13: 6.7 | AU13: 6.7 | AV13: 6.7 | AW13: 6.7 | AX13: 6.7 | AY13: 6.7 | AZ13: 6.7 | BA13: 6.7 | BB13: 6.7 | BC13: 6.7 | BD13: 6.7 | BE13: 6.7 | BF13: 6.7 | BG13: 6.7 | BH13: 6.7 | BI13: 6.7 | BJ13: 6.7 | BK13: 6.7 | BL13: 6.7 | BM13: 6.7 | BN13: 6.7
E14: =$D13-$D$6*0.5 -> 6.55 | F14: 6.55 | G14: 6.55 | H14: 6.55 | I14: 6.55 | J14: 6.55 | K14: 6.55 | L14: 6.55 | M14: 6.55 | N14: 6.55 | O14: 6.55 | P14: 6.55 | Q14: 6.55 | R14: 6.55 | S14: 6.55 | T14: 6.55 | U14: 6.55 | V14: 6.55 | W14: 6.55 | X14: 6.55 | Y14: 6.55 | Z14: 6.55 | AA14: 6.55 | AB14: 6.55 | AC14: 6.55 | AD14: 6.55 | AE14: 6.55 | AF14: 6.55 | AG14: 6.55 | AH14: 6.55 | AI14: 6.55 | AJ14: 6.55 | AK14: 6.55 | AL14: 6.55 | AM14: 6.55 | AN14: 6.55 | AO14: 6.55 | AP14: 6.55 | AQ14: 6.55 | AR14: 6.55 | AS14: 6.55 | AT14: 6.55 | AU14: 6.55 | AV14: 6.55 | AW14: 6.55 | AX14: 6.55 | AY14: 6.55 | AZ14: 6.55 | BA14: 6.55 | BB14: 6.55 | BC14: 6.55 | BD14: 6.55 | BE14: 6.55 | BF14: 6.55 | BG14: 6.55 | BH14: 6.55 | BI14: 6.55 | BJ14: 6.55 | BK14: 6.55 | BL14: 6.55 | BM14: 6.55 | BN14: 6.55
D15: =D17 +$D$6 -> 6.4 | E15: 6.4 | F15: 6.4 | G15: 6.4 | H15: 6.4 | I15: 6.4 | J15: 6.4 | K15: 6.4 | L15: 6.4 | M15: 6.4 | N15: 6.4 | O15: 6.4 | P15: 6.4 | Q15: 6.4 | R15: 6.4 | S15: 6.4 | T15: 6.4 | U15: 6.4 | V15: 6.4 | W15: 6.4 | X15: 6.4 | Y15: 6.4 | Z15: 6.4 | AA15: 6.4 | AB15: 6.4 | AC15: 6.4 | AD15: 6.4 | AE15: 6.4 | AF15: =$D15 -> 6.4 | AG15: 6.4 | AH15: 6.4 | AI15: 6.4 | AJ15: 6.4 | AK15: 6.4 | AL15: 6.4 | AM15: 6.4 | AN15: 6.4 | AO15: 6.4 | AP15: 6.4 | AQ15: 6.4 | AR15: 6.4 | AS15: 6.4 | AT15: 6.4 | AU15: 6.4 | AV15: 6.4 | AW15: 6.4 | AX15: 6.4 | AY15: 6.4 | AZ15: 6.4 | BA15: 6.4 | BB15: 6.4 | BC15: 6.4 | BD15: 6.4 | BE15: 6.4 | BF15: 6.4 | BG15: 6.4 | BH15: 6.4 | BI15: 6.4 | BJ15: 6.4 | BK15: 6.4 | BL15: 6.4 | BM15: 6.4 | BN15: 6.4
E16: =$D15-$D$6*0.5 -> 6.25 | F16: 6.25 | G16: 6.25 | H16: 6.25 | I16: 6.25 | J16: 6.25 | K16: 6.25 | L16: 6.25 | M16: 6.25 | N16: 6.25 | O16: 6.25 | P16: 6.25 | Q16: 6.25 | R16: 6.25 | S16: 6.25 | T16: 6.25 | U16: 6.25 | V16: 6.25 | W16: 6.25 | X16: 6.25 | Y16: 6.25 | Z16: 6.25 | AA16: 6.25 | AB16: 6.25 | AC16: 6.25 | AD16: 6.25 | AE16: 6.25 | AF16: 6.25 | AG16: 6.25 | AH16: 6.25 | AI16: 6.25 | AJ16: 6.25 | AK16: 6.25 | AL16: 6.25 | AM16: 6.25 | AN16: 6.25 | AO16: 6.25 | AP16: 6.25 | AQ16: 6.25 | AR16: 6.25 | AS16: 6.25 | AT16: 6.25 | AU16: 6.25 | AV16: 6.25 | AW16: 6.25 | AX16: 6.25 | AY16: 6.25 | AZ16: 6.25 | BA16: 6.25 | BB16: 6.25 | BC16: 6.25 | BD16: 6.25 | BE16: 6.25 | BF16: 6.25 | BG16: 6.25 | BH16: 6.25 | BI16: 6.25 | BJ16: 6.25 | BK16: 6.25 | BL16: 6.25 | BM16: 6.25 | BN16: 6.25
D17: =D19 +$D$6 -> 6.1 | E17: 6.1 | F17: 6.1 | G17: 6.1 | H17: 6.1 | I17: 6.1 | J17: 6.1 | K17: 6.1 | L17: 6.1 | M17: 6.1 | N17: 6.1 | O17: 6.1 | P17: 6.1 | Q17: 6.1 | R17: 6.1 | S17: 6.1 | T17: 6.1 | U17: 6.1 | V17: 6.1 | W17: 6.1 | X17: 6.1 | Y17: 6.1 | Z17: 6.1 | AA17: 6.1 | AB17: 6.1 | AC17: 6.1 | AD17: 6.1 | AE17: 6.1 | AF17: 6.1 | AG17: 6.1 | AH17: 6.1 | AI17: 6.1 | AJ17: 6.1 | AK17: 6.1 | AL17: 6.1 | AM17: 6.1 | AN17: 6.1 | AO17: 6.1 | AP17: 6.1 | AQ17: 6.1 | AR17: 6.1 | AS17: 6.1 | AT17: 6.1 | AU17: 6.1 | AV17: 6.1 | AW17: 6.1 | AX17: 6.1 | AY17: 6.1 | AZ17: 6.1 | BA17: 6.1 | BB17: 6.1 | BC17: 6.1 | BD17: 6.1 | BE17: 6.1 | BF17: 6.1 | BG17: 6.1 | BH17: 6.1 | BI17: 6.1 | BJ17: 6.1 | BK17: 6.1 | BL17: 6.1 | BM17: 6.1 | BN17: 6.1
E18: =$D17-$D$6*0.5 -> 5.95 | F18: 5.95 | G18: 5.95 | H18: 5.95 | I18: 5.95 | J18: 5.95 | K18: 5.95 | L18: 5.95 | M18: 5.95 | N18: 5.95 | O18: 5.95 | P18: 5.95 | Q18: 5.95 | R18: 5.95 | S18: 5.95 | T18: 5.95 | U18: 5.95 | V18: 5.95 | W18: 5.95 | X18: 5.95 | Y18: 5.95 | Z18: 5.95 | AA18: 5.95 | AB18: 5.95 | AC18: 5.95 | AD18: 5.95 | AE18: 5.95 | AF18: 5.95 | AG18: 5.95 | AH18: 5.95 | AI18: 5.95 | AJ18: 5.95 | AK18: 5.95 | AL18: 5.95 | AM18: 5.95 | AN18: 5.95 | AO18: 5.95 | AP18: 5.95 | AQ18: 5.95 | AR18: 5.95 | AS18: 5.95 | AT18: 5.95 | AU18: 5.95 | AV18: 5.95 | AW18: 5.95 | AX18: 5.95 | AY18: 5.95 | AZ18: 5.95 | BA18: 5.95 | BB18: 5.95 | BC18: 5.95 | BD18: 5.95 | BE18: 5.95 | BF18: 5.95 | BG18: 5.95 | BH18: 5.95 | BI18: 5.95 | BJ18: 5.95 | BK18: 5.95 | BL18: 5.95 | BM18: 5.95 | BN18: 5.95
D19: =D21 +$D$6 -> 5.8 | E19: 5.8 | F19: 5.8 | G19: 5.8 | H19: 5.8 | I19: 5.8 | J19: 5.8 | K19: 5.8 | L19: 5.8 | M19: 5.8 | N19: 5.8 | O19: 5.8 | P19: 5.8 | Q19: 5.8 | R19: 5.8 | S19: 5.8 | T19: 5.8 | U19: 5.8 | V19: 5.8 | W19: 5.8 | X19: 5.8 | Y19: 5.8 | Z19: 5.8 | AA19: 5.8 | AB19: 5.8 | AC19: 5.8 | AD19: 5.8 | AE19: 5.8 | AF19: 5.8 | AG19: 5.8 | AH19: 5.8 | AI19: 5.8 | AJ19: 5.8 | AK19: 5.8 | AL19: 5.8 | AM19: 5.8 | AN19: 5.8 | AO19: 5.8 | AP19: 5.8 | AQ19: 5.8 | AR19: 5.8 | AS19: 5.8 | AT19: 5.8 | AU19: 5.8 | AV19: 5.8 | AW19: 5.8 | AX19: 5.8 | AY19: 5.8 | AZ19: 5.8 | BA19: 5.8 | BB19: 5.8 | BC19: 5.8 | BD19: 5.8 | BE19: 5.8 | BF19: 5.8 | BG19: 5.8 | BH19: 5.8 | BI19: 5.8 | BJ19: 5.8 | BK19: 5.8 | BL19: 5.8 | BM19: 5.8 | BN19: 5.8
E20: =$D19-$D$6*0.5 -> 5.65 | F20: 5.65 | G20: 5.65 | H20: 5.65 | I20: 5.65 | J20: 5.65 | K20: 5.65 | L20: 5.65 | M20: 5.65 | N20: 5.65 | O20: 5.65 | P20: 5.65 | Q20: 5.65 | R20: 5.65 | S20: 5.65 | T20: 5.65 | U20: 5.65 | V20: 5.65 | W20: 5.65 | X20: 5.65 | Y20: 5.65 | Z20: 5.65 | AA20: 5.65 | AB20: 5.65 | AC20: 5.65 | AD20: 5.65 | AE20: 5.65 | AF20: 5.65 | AG20: 5.65 | AH20: 5.65 | AI20: 5.65 | AJ20: 5.65 | AK20: 5.65 | AL20: 5.65 | AM20: 5.65 | AN20: 5.65 | AO20: 5.65 | AP20: 5.65 | AQ20: 5.65 | AR20: 5.65 | AS20: 5.65 | AT20: 5.65 | AU20: 5.65 | AV20: 5.65 | AW20: 5.65 | AX20: 5.65 | AY20: 5.65 | AZ20: 5.65 | BA20: 5.65 | BB20: 5.65 | BC20: 5.65 | BD20: 5.65 | BE20: 5.65 | BF20: 5.65 | BG20: 5.65 | BH20: 5.65 | BI20: 5.65 | BJ20: 5.65 | BK20: 5.65 | BL20: 5.65 | BM20: 5.65 | BN20: 5.65
D21: =D23 +$D$6 -> 5.5 | E21: 5.5 | F21: 5.5 | G21: 5.5 | H21: 5.5 | I21: 5.5 | J21: 5.5 | K21: 5.5 | L21: 5.5 | M21: 5.5 | N21: 5.5 | O21: 5.5 | P21: 5.5 | Q21: 5.5 | R21: 5.5 | S21: 5.5 | T21: 5.5 | U21: 5.5 | V21: 5.5 | W21: 5.5 | X21: 5.5 | Y21: 5.5 | Z21: 5.5 | AA21: 5.5 | AB21: 5.5 | AC21: 5.5 | AD21: 5.5 | AE21: 5.5 | AF21: 5.5 | AG21: 5.5 | AH21: 5.5 | AI21: 5.5 | AJ21: 5.5 | AK21: 5.5 | AL21: 5.5 | AM21: 5.5 | AN21: 5.5 | AO21: 5.5 | AP21: 5.5 | AQ21: 5.5 | AR21: 5.5 | AS21: 5.5 | AT21: 5.5 | AU21: 5.5 | AV21: 5.5 | AW21: 5.5 | AX21: 5.5 | AY21: 5.5 | AZ21: 5.5 | BA21: 5.5 | BB21: 5.5 | BC21: 5.5 | BD21: 5.5 | BE21: 5.5 | BF21: 5.5 | BG21: 5.5 | BH21: 5.5 | BI21: 5.5 | BJ21: 5.5 | BK21: 5.5 | BL21: 5.5 | BM21: 5.5 | BN21: 5.5
E22: =$D21-$D$6*0.5 -> 5.35 | F22: 5.35 | G22: 5.35 | H22: 5.35 | I22: 5.35 | J22: 5.35 | K22: 5.35 | L22: 5.35 | M22: 5.35 | N22: 5.35 | O22: 5.35 | P22: 5.35 | Q22: 5.35 | R22: 5.35 | S22: 5.35 | T22: 5.35 | U22: 5.35 | V22: 5.35 | W22: 5.35 | X22: 5.35 | Y22: 5.35 | Z22: 5.35 | AA22: 5.35 | AB22: 5.35 | AC22: 5.35 | AD22: 5.35 | AE22: 5.35 | AF22: 5.35 | AG22: 5.35 | AH22: 5.35 | AI22: 5.35 | AJ22: 5.35 | AK22: 5.35 | AL22: 5.35 | AM22: 5.35 | AN22: 5.35 | AO22: 5.35 | AP22: 5.35 | AQ22: 5.35 | AR22: 5.35 | AS22: 5.35 | AT22: 5.35 | AU22: 5.35 | AV22: 5.35 | AW22: 5.35 | AX22: 5.35 | AY22: 5.35 | AZ22: 5.35 | BA22: 5.35 | BB22: 5.35 | BC22: 5.35 | BD22: 5.35 | BE22: 5.35 | BF22: 5.35 | BG22: 5.35 | BH22: 5.35 | BI22: 5.35 | BJ22: 5.35 | BK22: 5.35 | BL22: 5.35 | BM22: 5.35 | BN22: 5.35
D23: =D25 +$D$6 -> 5.2 | E23: 5.2 | F23: 5.2 | G23: 5.2 | H23: 5.2 | I23: 5.2 | J23: 5.2 | K23: 5.2 | L23: 5.2 | M23: 5.2 | N23: 5.2 | O23: 5.2 | P23: 5.2 | Q23: 5.2 | R23: 5.2 | S23: 5.2 | T23: 5.2 | U23: 5.2 | V23: 5.2 | W23: 5.2 | X23: 5.2 | Y23: 5.2 | Z23: 5.2 | AA23: 5.2 | AB23: 5.2 | AC23: 5.2 | AD23: 5.2 | AE23: 5.2 | AF23: 5.2 | AG23: 5.2 | AH23: 5.2 | AI23: 5.2 | AJ23: 5.2 | AK23: 5.2 | AL23: 5.2 | AM23: 5.2 | AN23: 5.2 | AO23: 5.2 | AP23: 5.2 | AQ23: =$D23 -> 5.2 | AR23: 5.2 | AS23: 5.2 | AT23: 5.2 | AU23: 5.2 | AV23: 5.2 | AW23: 5.2 | AX23: 5.2 | AY23: 5.2 | AZ23: 5.2 | BA23: 5.2 | BB23: 5.2 | BC23: 5.2 | BD23: 5.2 | BE23: 5.2 | BF23: 5.2 | BG23: 5.2 | BH23: 5.2 | BI23: 5.2 | BJ23: 5.2 | BK23: 5.2 | BL23: 5.2 | BM23: 5.2 | BN23: 5.2
E24: =$D23-$D$6*0.5 -> 5.05 | F24: 5.05 | G24: 5.05 | H24: 5.05 | I24: 5.05 | J24: 5.05 | K24: 5.05 | L24: 5.05 | M24: 5.05 | N24: 5.05 | O24: 5.05 | P24: 5.05 | Q24: 5.05 | R24: 5.05 | S24: 5.05 | T24: 5.05 | U24: 5.05 | V24: 5.05 | W24: 5.05 | X24: 5.05 | Y24: 5.05 | Z24: 5.05 | AA24: 5.05 | AB24: 5.05 | AC24: 5.05 | AD24: 5.05 | AE24: 5.05 | AF24: 5.05 | AG24: 5.05 | AH24: 5.05 | AI24: 5.05 | AJ24: 5.05 | AK24: 5.05 | AL24: 5.05 | AM24: 5.05 | AN24: 5.05 | AO24: 5.05 | AP24: 5.05 | AQ24: 5.05 | AR24: 5.05 | AS24: 5.05 | AT24: 5.05 | AU24: 5.05 | AV24: 5.05 | AW24: 5.05 | AX24: 5.05 | AY24: 5.05 | AZ24: 5.05 | BA24: 5.05 | BB24: 5.05 | BC24: 5.05 | BD24: 5.05 | BE24: 5.05 | BF24: 5.05 | BG24: 5.05 | BH24: 5.05 | BI24: 5.05 | BJ24: 5.05 | BK24: 5.05 | BL24: 5.05 | BM24: 5.05 | BN24: 5.05
D25: =D27 +$D$6 -> 4.9 | E25: 4.9 | F25: 4.9 | G25: 4.9 | H25: 4.9 | I25: 4.9 | J25: 4.9 | K25: 4.9 | L25: 4.9 | M25: 4.9 | N25: 4.9 | O25: 4.9 | P25: 4.9 | Q25: 4.9 | R25: 4.9 | S25: 4.9 | T25: 4.9 | U25: 4.9 | V25: 4.9 | W25: 4.9 | X25: 4.9 | Y25: 4.9 | Z25: 4.9 | AA25: 4.9 | AB25: 4.9 | AC25: 4.9 | AD25: 4.9 | AE25: 4.9 | AF25: 4.9 | AG25: 4.9 | AH25: 4.9 | AI25: 4.9 | AJ25: 4.9 | AK25: 4.9 | AL25: 4.9 | AM25: 4.9 | AN25: 4.9 | AO25: 4.9 | AP25: 4.9 | AQ25: 4.9 | AR25: 4.9 | AS25: 4.9 | AT25: 4.9 | AU25: 4.9 | AV25: 4.9 | AW25: 4.9 | AX25: 4.9 | AY25: 4.9 | AZ25: 4.9 | BA25: 4.9 | BB25: 4.9 | BC25: 4.9 | BD25: 4.9 | BE25: 4.9 | BF25: 4.9 | BG25: 4.9 | BH25: 4.9 | BI25: 4.9 | BJ25: 4.9 | BK25: 4.9 | BL25: 4.9 | BM25: 4.9 | BN25: 4.9
E26: =$D25-$D$6*0.5 -> 4.75 | F26: 4.75 | G26: 4.75 | H26: 4.75 | I26: 4.75 | J26: 4.75 | K26: 4.75 | L26: 4.75 | M26: 4.75 | N26: 4.75 | O26: 4.75 | P26: 4.75 | Q26: 4.75 | R26: 4.75 | S26: 4.75 | T26: 4.75 | U26: 4.75 | V26: 4.75 | W26: 4.75 | X26: 4.75 | Y26: 4.75 | Z26: 4.75 | AA26: 4.75 | AB26: 4.75 | AC26: 4.75 | AD26: 4.75 | AE26: 4.75 | AF26: 4.75 | AG26: 4.75 | AH26: 4.75 | AI26: 4.75 | AJ26: 4.75 | AK26: 4.75 | AL26: 4.75 | AM26: 4.75 | AN26: 4.75 | AO26: 4.75 | AP26: 4.75 | AQ26: 4.75 | AR26: 4.75 | AS26: 4.75 | AT26: 4.75 | AU26: 4.75 | AV26: 4.75 | AW26: 4.75 | AX26: 4.75 | AY26: 4.75 | AZ26: 4.75 | BA26: 4.75 | BB26: 4.75 | BC26: 4.75 | BD26: 4.75 | BE26: 4.75 | BF26: 4.75 | BG26: 4.75 | BH26: 4.75 | BI26: 4.75 | BJ26: 4.75 | BK26: 4.75 | BL26: 4.75 | BM26: 4.75 | BN26: 4.75
D27: =D29 +$D$6 -> 4.6 | E27: 4.6 | F27: 4.6 | G27: 4.6 | H27: 4.6 | I27: 4.6 | J27: 4.6 | K27: 4.6 | L27: 4.6 | M27: 4.6 | N27: 4.6 | O27: 4.6 | P27: 4.6 | Q27: 4.6 | R27: 4.6 | S27: 4.6 | T27: 4.6 | U27: 4.6 | V27: 4.6 | W27: 4.6 | X27: 4.6 | Y27: 4.6 | Z27: 4.6 | AA27: 4.6 | AB27: 4.6 | AC27: 4.6 | AD27: 4.6 | AE27: 4.6 | AF27: 4.6 | AG27: 4.6 | AH27: 4.6 | AI27: 4.6 | AJ27: 4.6 | AK27: 4.6 | AL27: 4.6 | AM27: 4.6 | AN27: 4.6 | AO27: 4.6 | AP27: 4.6 | AQ27: 4.6 | AR27: 4.6 | AS27: 4.6 | AT27: 4.6 | AU27: 4.6 | AV27: 4.6 | AW27: 4.6 | AX27: 4.6 | AY27: 4.6 | AZ27: 4.6 | BA27: 4.6 | BB27: 4.6 | BC27: 4.6 | BD27: 4.6 | BE27: 4.6 | BF27: 4.6 | BG27: 4.6 | BH27: 4.6 | BI27: 4.6 | BJ27: 4.6 | BK27: 4.6 | BL27: 4.6 | BM27: 4.6 | BN27: 4.6
E28: =$D27-$D$6*0.5 -> 4.45 | F28: 4.45 | G28: 4.45 | H28: 4.45 | I28: 4.45 | J28: 4.45 | K28: 4.45 | L28: 4.45 | M28: 4.45 | N28: 4.45 | O28: 4.45 | P28: 4.45 | Q28: 4.45 | R28: 4.45 | S28: 4.45 | T28: 4.45 | U28: 4.45 | V28: 4.45 | W28: 4.45 | X28: 4.45 | Y28: 4.45 | Z28: 4.45 | AA28: 4.45 | AB28: 4.45 | AC28: 4.45 | AD28: 4.45 | AE28: 4.45 | AF28: 4.45 | AG28: 4.45 | AH28: 4.45 | AI28: 4.45 | AJ28: 4.45 | AK28: 4.45 | AL28: 4.45 | AM28: 4.45 | AN28: 4.45 | AO28: 4.45 | AP28: 4.45 | AQ28: 4.45 | AR28: 4.45 | AS28: 4.45 | AT28: 4.45 | AU28: 4.45 | AV28: 4.45 | AW28: 4.45 | AX28: 4.45 | AY28: 4.45 | AZ28: 4.45 | BA28: 4.45 | BB28: 4.45 | BC28: 4.45 | BD28: 4.45 | BE28: 4.45 | BF28: 4.45 | BG28: 4.45 | BH28: 4.45 | BI28: 4.45 | BJ28: 4.45 | BK28: 4.45 | BL28: 4.45 | BM28: 4.45 | BN28: 4.45
D29: =D31 +$D$6 -> 4.3 | E29: 4.3 | F29: 4.3 | G29: 4.3 | H29: 4.3 | I29: 4.3 | J29: 4.3 | K29: 4.3 | L29: 4.3 | M29: 4.3 | N29: 4.3 | O29: 4.3 | P29: 4.3 | Q29: 4.3 | R29: 4.3 | S29: 4.3 | T29: 4.3 | U29: 4.3 | V29: 4.3 | W29: 4.3 | X29: 4.3 | Y29: 4.3 | Z29: 4.3 | AA29: 4.3 | AB29: 4.3 | AC29: 4.3 | AD29: 4.3 | AE29: 4.3 | AF29: 4.3 | AG29: 4.3 | AH29: 4.3 | AI29: 4.3 | AJ29: 4.3 | AK29: 4.3 | AL29: 4.3 | AM29: 4.3 | AN29: 4.3 | AO29: 4.3 | AP29: 4.3 | AQ29: 4.3 | AR29: 4.3 | AS29: 4.3 | AT29: 4.3 | AU29: 4.3 | AV29: 4.3 | AW29: 4.3 | AX29: 4.3 | AY29: 4.3 | AZ29: 4.3 | BA29: 4.3 | BB29: 4.3 | BC29: 4.3 | BD29: 4.3 | BE29: 4.3 | BF29: 4.3 | BG29: 4.3 | BH29: 4.3 | BI29: 4.3 | BJ29: 4.3 | BK29: 4.3 | BL29: 4.3 | BM29: 4.3 | BN29: 4.3
E30: =$D29-$D$6*0.5 -> 4.15 | F30: 4.15 | G30: 4.15 | H30: 4.15 | I30: 4.15 | J30: 4.15 | K30: 4.15 | L30: 4.15 | M30: 4.15 | N30: 4.15 | O30: 4.15 | P30: 4.15 | Q30: 4.15 | R30: 4.15 | S30: 4.15 | T30: 4.15 | U30: 4.15 | V30: 4.15 | W30: 4.15 | X30: 4.15 | Y30: 4.15 | Z30: 4.15 | AA30: 4.15 | AB30: 4.15 | AC30: 4.15 | AD30: 4.15 | AE30: 4.15 | AF30: 4.15 | AG30: 4.15 | AH30: 4.15 | AI30: 4.15 | AJ30: 4.15 | AK30: 4.15 | AL30: 4.15 | AM30: 4.15 | AN30: 4.15 | AO30: 4.15 | AP30: 4.15 | AQ30: 4.15 | AR30: 4.15 | AS30: 4.15 | AT30: 4.15 | AU30: 4.15 | AV30: 4.15 | AW30: 4.15 | AX30: 4.15 | AY30: 4.15 | AZ30: 4.15 | BA30: 4.15 | BB30: 4.15 | BC30: 4.15 | BD30: 4.15 | BE30: 4.15 | BF30: 4.15 | BG30: 4.15 | BH30: 4.15 | BI30: 4.15 | BJ30: 4.15 | BK30: 4.15 | BL30: 4.15 | BM30: 4.15 | BN30: 4.15
D31: =D33 +$D$6 -> 4 | E31: 4 | F31: 4 | G31: 4 | H31: 4 | I31: 4 | J31: 4 | K31: 4 | L31: 4 | M31: 4 | N31: 4 | O31: 4 | P31: 4 | Q31: 4 | R31: 4 | S31: 4 | T31: 4 | U31: 4 | V31: 4 | W31: 4 | X31: 4 | Y31: 4 | Z31: 4 | AA31: 4 | AB31: 4 | AC31: 4 | AD31: 4 | AE31: 4 | AF31: 4 | AG31: 4 | AH31: 4 | AI31: 4 | AJ31: 4 | AK31: 4 | AL31: 4 | AM31: 4 | AN31: 4 | AO31: 4 | AP31: 4 | AQ31: 4 | AR31: 4 | AS31: 4 | AT31: 4 | AU31: 4 | AV31: 4 | AW31: 4 | AX31: 4 | AY31: 4 | AZ31: 4 | BA31: 4 | BB31: =$D31 -> 4 | BC31: 4 | BD31: 4 | BE31: 4 | BF31: 4 | BG31: 4 | BH31: 4 | BI31: 4 | BJ31: 4 | BK31: 4 | BL31: 4 | BM31: 4 | BN31: 4
E32: =$D31-$D$6*0.5 -> 3.85 | F32: =$D31-$D$6*0.5 -> 3.85 | G32: 3.85 | H32: 3.85 | I32: 3.85 | J32: 3.85 | K32: 3.85 | L32: 3.85 | M32: 3.85 | N32: 3.85 | O32: 3.85 | P32: 3.85 | Q32: 3.85 | R32: 3.85 | S32: 3.85 | T32: 3.85 | U32: 3.85 | V32: 3.85 | W32: 3.85 | X32: 3.85 | Y32: 3.85 | Z32: 3.85 | AA32: 3.85 | AB32: 3.85 | AC32: 3.85 | AD32: 3.85 | AE32: 3.85 | AF32: 3.85 | AG32: 3.85 | AH32: 3.85 | AI32: 3.85 | AJ32: 3.85 | AK32: 3.85 | AL32: 3.85 | AM32: 3.85 | AN32: 3.85 | AO32: 3.85 | AP32: 3.85 | AQ32: 3.85 | AR32: 3.85 | AS32: 3.85 | AT32: 3.85 | AU32: 3.85 | AV32: 3.85 | AW32: 3.85 | AX32: 3.85 | AY32: 3.85 | AZ32: 3.85 | BA32: 3.85 | BB32: 3.85 | BC32: 3.85 | BD32: 3.85 | BE32: 3.85 | BF32: 3.85 | BG32: 3.85 | BH32: 3.85 | BI32: 3.85 | BJ32: 3.85 | BK32: 3.85 | BL32: 3.85 | BM32: 3.85 | BN32: 3.85
D33: =AN6 -> 3.7 | E33: 3.7 | F33: 3.7 | G33: 3.7 | H33: 3.7 | I33: 3.7 | J33: 3.7 | K33: 3.7 | L33: 3.7 | M33: 3.7 | N33: 3.7 | O33: 3.7 | P33: 3.7 | Q33: 3.7 | R33: 3.7 | S33: 3.7 | T33: 3.7 | U33: 3.7 | V33: 3.7 | W33: 3.7 | X33: 3.7 | Y33: 3.7 | Z33: 3.7 | AA33: 3.7 | AB33: 3.7 | AC33: 3.7 | AD33: 3.7 | AE33: 3.7 | AF33: 3.7 | AG33: 3.7 | AH33: 3.7 | AI33: 3.7 | AJ33: 3.7 | AK33: 3.7 | AL33: 3.7 | AM33: 3.7 | AN33: 3.7 | AO33: 3.7 | AP33: 3.7 | AQ33: 3.7 | AR33: 3.7 | AS33: 3.7 | AT33: 3.7 | AU33: 3.7 | AV33: 3.7 | AW33: 3.7 | AX33: 3.7 | AY33: 3.7 | AZ33: 3.7 | BA33: 3.7 | BB33: 3.7 | BC33: 3.7 | BD33: 3.7 | BE33: 3.7 | BF33: 3.7 | BG33: 3.7 | BH33: 3.7 | BI33: 3.7 | BJ33: 3.7 | BK33: 3.7 | BL33: 3.7 | BM33: 3.7 | BN33: 3.7
E34: =$D33-$D$6*0.5 -> 3.55 | F34: 3.55 | G34: 3.55 | H34: 3.55 | I34: 3.55 | J34: 3.55 | K34: 3.55 | L34: 3.55 | M34: 3.55 | N34: 3.55 | O34: 3.55 | P34: 3.55 | Q34: 3.55 | R34: 3.55 | S34: 3.55 | T34: 3.55 | U34: 3.55 | V34: 3.55 | W34: 3.55 | X34: 3.55 | Y34: 3.55 | Z34: 3.55 | AA34: 3.55 | AB34: 3.55 | AC34: 3.55 | AD34: 3.55 | AE34: 3.55 | AF34: 3.55 | AG34: 3.55 | AH34: 3.55 | AI34: 3.55 | AJ34: 3.55 | AK34: 3.55 | AL34: 3.55 | AM34: 3.55 | AN34: 3.55 | AO34: 3.55 | AP34: 3.55 | AQ34: 3.55 | AR34: 3.55 | AS34: 3.55 | AT34: 3.55 | AU34: 3.55 | AV34: 3.55 | AW34: 3.55 | AX34: 3.55 | AY34: 3.55 | AZ34: 3.55 | BA34: 3.55 | BB34: 3.55 | BC34: 3.55 | BD34: 3.55 | BE34: 3.55 | BF34: 3.55 | BG34: 3.55 | BH34: 3.55 | BI34: 3.55 | BJ34: 3.55 | BK34: 3.55 | BL34: 3.55 | BM34: 3.55 | BN34: 3.55
D35: =D33 -$D$6 -> 3.4 | E35: =$D35 -> 3.4 | F35: 3.4 | G35: 3.4 | H35: 3.4 | I35: 3.4 | J35: 3.4 | K35: 3.4 | L35: 3.4 | M35: 3.4 | N35: 3.4 | O35: 3.4 | P35: 3.4 | Q35: 3.4 | R35: 3.4 | S35: 3.4 | T35: 3.4 | U35: =$D35 -> 3.4 | V35: 3.4 | W35: 3.4 | X35: 3.4 | Y35: 3.4 | Z35: 3.4 | AA35: 3.4 | AB35: 3.4 | AC35: 3.4 | AD35: 3.4 | AE35: 3.4 | AF35: 3.4 | AG35: 3.4 | AH35: 3.4 | AI35: 3.4 | AJ35: 3.4 | AK35: 3.4 | AL35: 3.4 | AM35: 3.4 | AN35: 3.4 | AO35: 3.4 | AP35: 3.4 | AQ35: 3.4 | AR35: 3.4 | AS35: 3.4 | AT35: 3.4 | AU35: 3.4 | AV35: 3.4 | AW35: 3.4 | AX35: 3.4 | AY35: 3.4 | AZ35: 3.4 | BA35: 3.4 | BB35: 3.4 | BC35: 3.4 | BD35: 3.4 | BE35: 3.4 | BF35: 3.4 | BG35: 3.4 | BH35: 3.4 | BI35: 3.4 | BJ35: 3.4 | BK35: 3.4 | BL35: 3.4 | BM35: 3.4 | BN35: 3.4
E36: =$D35-$D$6*0.5 -> 3.25 | F36: 3.25 | G36: 3.25 | H36: 3.25 | I36: 3.25 | J36: 3.25 | K36: 3.25 | L36: 3.25 | M36: 3.25 | N36: 3.25 | O36: 3.25 | P36: 3.25 | Q36: 3.25 | R36: 3.25 | S36: 3.25 | T36: 3.25 | U36: 3.25 | V36: 3.25 | W36: 3.25 | X36: 3.25 | Y36: 3.25 | Z36: 3.25 | AA36: 3.25 | AB36: 3.25 | AC36: 3.25 | AD36: 3.25 | AE36: 3.25 | AF36: 3.25 | AG36: 3.25 | AH36: 3.25 | AI36: 3.25 | AJ36: 3.25 | AK36: 3.25 | AL36: 3.25 | AM36: 3.25 | AN36: 3.25 | AO36: 3.25 | AP36: 3.25 | AQ36: 3.25 | AR36: 3.25 | AS36: 3.25 | AT36: 3.25 | AU36: 3.25 | AV36: 3.25 | AW36: 3.25 | AX36: 3.25 | AY36: 3.25 | AZ36: 3.25 | BA36: 3.25 | BB36: 3.25 | BC36: 3.25 | BD36: 3.25 | BE36: 3.25 | BF36: 3.25 | BG36: 3.25 | BH36: 3.25 | BI36: 3.25 | BJ36: 3.25 | BK36: 3.25 | BL36: 3.25 | BM36: 3.25 | BN36: 3.25
D37: =D35 -$D$6 -> 3.1 | E37: =$D37 -> 3.1 | F37: 3.1 | G37: 3.1 | H37: 3.1 | I37: 3.1 | J37: 3.1 | K37: 3.1 | L37: 3.1 | M37: 3.1 | N37: 3.1 | O37: 3.1 | P37: 3.1 | Q37: 3.1 | R37: 3.1 | S37: 3.1 | T37: 3.1 | U37: =$D37 -> 3.1 | V37: 3.1 | W37: 3.1 | X37: 3.1 | Y37: 3.1 | Z37: 3.1 | AA37: 3.1 | AB37: 3.1 | AC37: 3.1 | AD37: 3.1 | AE37: 3.1 | AF37: 3.1 | AG37: 3.1 | AH37: 3.1 | AI37: 3.1 | AJ37: 3.1 | AK37: 3.1 | AL37: 3.1 | AM37: 3.1 | AN37: 3.1 | AO37: 3.1 | AP37: 3.1 | AQ37: 3.1 | AR37: 3.1 | AS37: 3.1 | AT37: 3.1 | AU37: 3.1 | AV37: 3.1 | AW37: 3.1 | AX37: 3.1 | AY37: 3.1 | AZ37: 3.1 | BA37: 3.1 | BB37: 3.1 | BC37: 3.1 | BD37: 3.1 | BE37: 3.1 | BF37: 3.1 | BG37: 3.1 | BH37: 3.1 | BI37: 3.1 | BJ37: 3.1 | BK37: 3.1 | BL37: 3.1 | BM37: 3.1 | BN37: 3.1
E38: =$D37-$D$6*0.5 -> 2.95 | F38: 2.95 | G38: 2.95 | H38: 2.95 | I38: 2.95 | J38: 2.95 | K38: 2.95 | L38: 2.95 | M38: 2.95 | N38: 2.95 | O38: 2.95 | P38: 2.95 | Q38: 2.95 | R38: 2.95 | S38: 2.95 | T38: 2.95 | U38: 2.95 | V38: 2.95 | W38: 2.95 | X38: 2.95 | Y38: 2.95 | Z38: 2.95 | AA38: 2.95 | AB38: 2.95 | AC38: 2.95 | AD38: 2.95 | AE38: 2.95 | AF38: 2.95 | AG38: 2.95 | AH38: 2.95 | AI38: 2.95 | AJ38: 2.95 | AK38: 2.95 | AL38: 2.95 | AM38: 2.95 | AN38: 2.95 | AO38: 2.95 | AP38: 2.95 | AQ38: 2.95 | AR38: 2.95 | AS38: 2.95 | AT38: 2.95 | AU38: 2.95 | AV38: 2.95 | AW38: 2.95 | AX38: 2.95 | AY38: 2.95 | AZ38: 2.95 | BA38: 2.95 | BB38: 2.95 | BC38: 2.95 | BD38: 2.95 | BE38: 2.95 | BF38: 2.95 | BG38: 2.95 | BH38: 2.95 | BI38: 2.95 | BJ38: 2.95 | BK38: 2.95 | BL38: 2.95 | BM38: 2.95 | BN38: 2.95
D39: =D37 -$D$6 -> 2.8 | E39: =$D39 -> 2.8 | F39: 2.8 | G39: 2.8 | H39: 2.8 | I39: 2.8 | J39: 2.8 | K39: 2.8 | L39: 2.8 | M39: 2.8 | N39: 2.8 | O39: 2.8 | P39: 2.8 | Q39: 2.8 | R39: 2.8 | S39: 2.8 | T39: 2.8 | U39: =$D39 -> 2.8 | V39: 2.8 | W39: 2.8 | X39: 2.8 | Y39: 2.8 | Z39: 2.8 | AA39: 2.8 | AB39: 2.8 | AC39: 2.8 | AD39: 2.8 | AE39: 2.8 | AF39: 2.8 | AG39: 2.8 | AH39: 2.8 | AI39: 2.8 | AJ39: 2.8 | AK39: 2.8 | AL39: 2.8 | AM39: 2.8 | AN39: 2.8 | AO39: 2.8 | AP39: 2.8 | AQ39: 2.8 | AR39: 2.8 | AS39: 2.8 | AT39: 2.8 | AU39: 2.8 | AV39: 2.8 | AW39: 2.8 | AX39: 2.8 | AY39: 2.8 | AZ39: 2.8 | BA39: 2.8 | BB39: 2.8 | BC39: 2.8 | BD39: 2.8 | BE39: 2.8 | BF39: 2.8 | BG39: 2.8 | BH39: 2.8 | BI39: 2.8 | BJ39: 2.8 | BK39: 2.8 | BL39: 2.8 | BM39: 2.8 | BN39: 2.8
E40: =$D39-$D$6*0.5 -> 2.65 | F40: 2.65 | G40: 2.65 | H40: 2.65 | I40: 2.65 | J40: 2.65 | K40: 2.65 | L40: 2.65 | M40: 2.65 | N40: 2.65 | O40: 2.65 | P40: 2.65 | Q40: 2.65 | R40: 2.65 | S40: 2.65 | T40: 2.65 | U40: 2.65 | V40: 2.65 | W40: 2.65 | X40: 2.65 | Y40: 2.65 | Z40: 2.65 | AA40: 2.65 | AB40: 2.65 | AC40: 2.65 | AD40: 2.65 | AE40: 2.65 | AF40: 2.65 | AG40: 2.65 | AH40: 2.65 | AI40: 2.65 | AJ40: 2.65 | AK40: 2.65 | AL40: 2.65 | AM40: 2.65 | AN40: 2.65 | AO40: 2.65 | AP40: 2.65 | AQ40: 2.65 | AR40: 2.65 | AS40: 2.65 | AT40: 2.65 | AU40: 2.65 | AV40: 2.65 | AW40: 2.65 | AX40: 2.65 | AY40: 2.65 | AZ40: 2.65 | BA40: 2.65 | BB40: 2.65 | BC40: 2.65 | BD40: 2.65 | BE40: 2.65 | BF40: 2.65 | BG40: 2.65 | BH40: 2.65 | BI40: 2.65 | BJ40: 2.65 | BK40: 2.65 | BL40: 2.65 | BM40: 2.65 | BN40: 2.65
D41: =D39 -$D$6 -> 2.5 | E41: =$D41 -> 2.5 | F41: 2.5 | G41: 2.5 | H41: 2.5 | I41: 2.5 | J41: 2.5 | K41: 2.5 | L41: 2.5 | M41: 2.5 | N41: 2.5 | O41: 2.5 | P41: 2.5 | Q41: 2.5 | R41: 2.5 | S41: 2.5 | T41: 2.5 | U41: =$D41 -> 2.5 | V41: 2.5 | W41: 2.5 | X41: 2.5 | Y41: 2.5 | Z41: 2.5 | AA41: 2.5 | AB41: 2.5 | AC41: 2.5 | AD41: 2.5 | AE41: 2.5 | AF41: 2.5 | AG41: 2.5 | AH41: 2.5 | AI41: 2.5 | AJ41: 2.5 | AK41: 2.5 | AL41: 2.5 | AM41: 2.5 | AN41: 2.5 | AO41: 2.5 | AP41: 2.5 | AQ41: 2.5 | AR41: 2.5 | AS41: 2.5 | AT41: 2.5 | AU41: 2.5 | AV41: 2.5 | AW41: 2.5 | AX41: 2.5 | AY41: 2.5 | AZ41: 2.5 | BA41: 2.5 | BB41: 2.5 | BC41: 2.5 | BD41: 2.5 | BE41: 2.5 | BF41: 2.5 | BG41: 2.5 | BH41: 2.5 | BI41: 2.5 | BJ41: 2.5 | BK41: 2.5 | BL41: 2.5 | BM41: 2.5 | BN41: 2.5
E42: =$D41-$D$6*0.5 -> 2.35 | F42: 2.35 | G42: 2.35 | H42: 2.35 | I42: 2.35 | J42: 2.35 | K42: 2.35 | L42: 2.35 | M42: 2.35 | N42: 2.35 | O42: 2.35 | P42: 2.35 | Q42: 2.35 | R42: 2.35 | S42: 2.35 | T42: 2.35 | U42: 2.35 | V42: 2.35 | W42: 2.35 | X42: 2.35 | Y42: 2.35 | Z42: 2.35 | AA42: 2.35 | AB42: 2.35 | AC42: 2.35 | AD42: 2.35 | AE42: 2.35 | AF42: 2.35 | AG42: 2.35 | AH42: 2.35 | AI42: 2.35 | AJ42: 2.35 | AK42: 2.35 | AL42: 2.35 | AM42: 2.35 | AN42: 2.35 | AO42: 2.35 | AP42: 2.35 | AQ42: 2.35 | AR42: 2.35 | AS42: 2.35 | AT42: 2.35 | AU42: 2.35 | AV42: 2.35 | AW42: 2.35 | AX42: 2.35 | AY42: 2.35 | AZ42: 2.35 | BA42: 2.35 | BB42: 2.35 | BC42: 2.35 | BD42: 2.35 | BE42: 2.35 | BF42: 2.35 | BG42: 2.35 | BH42: 2.35 | BI42: 2.35 | BJ42: 2.35 | BK42: 2.35 | BL42: 2.35 | BM42: 2.35 | BN42: 2.35
D43: =D41 -$D$6 -> 2.2 | E43: =$D43 -> 2.2 | F43: 2.2 | G43: 2.2 | H43: 2.2 | I43: 2.2 | J43: 2.2 | K43: 2.2 | L43: 2.2 | M43: 2.2 | N43: 2.2 | O43: 2.2 | P43: 2.2 | Q43: 2.2 | R43: 2.2 | S43: 2.2 | T43: 2.2 | U43: =$D43 -> 2.2 | V43: 2.2 | W43: 2.2 | X43: 2.2 | Y43: 2.2 | Z43: 2.2 | AA43: 2.2 | AB43: 2.2 | AC43: 2.2 | AD43: 2.2 | AE43: 2.2 | AF43: 2.2 | AG43: 2.2 | AH43: 2.2 | AI43: 2.2 | AJ43: 2.2 | AK43: 2.2 | AL43: 2.2 | AM43: 2.2 | AN43: 2.2 | AO43: 2.2 | AP43: 2.2 | AQ43: 2.2 | AR43: 2.2 | AS43: 2.2 | AT43: 2.2 | AU43: 2.2 | AV43: 2.2 | AW43: 2.2 | AX43: 2.2 | AY43: 2.2 | AZ43: 2.2 | BA43: 2.2 | BB43: 2.2 | BC43: 2.2 | BD43: 2.2 | BE43: 2.2 | BF43: 2.2 | BG43: 2.2 | BH43: 2.2 | BI43: 2.2 | BJ43: 2.2 | BK43: 2.2 | BL43: 2.2 | BM43: 2.2 | BN43: 2.2
E44: =$D43-$D$6*0.5 -> 2.05 | F44: 2.05 | G44: 2.05 | H44: 2.05 | I44: 2.05 | J44: 2.05 | K44: 2.05 | L44: 2.05 | M44: 2.05 | N44: 2.05 | O44: 2.05 | P44: 2.05 | Q44: 2.05 | R44: 2.05 | S44: 2.05 | T44: 2.05 | U44: 2.05 | V44: 2.05 | W44: 2.05 | X44: 2.05 | Y44: 2.05 | Z44: 2.05 | AA44: 2.05 | AB44: 2.05 | AC44: 2.05 | AD44: 2.05 | AE44: 2.05 | AF44: 2.05 | AG44: 2.05 | AH44: 2.05 | AI44: 2.05 | AJ44: 2.05 | AK44: 2.05 | AL44: 2.05 | AM44: 2.05 | AN44: 2.05 | AO44: 2.05 | AP44: 2.05 | AQ44: 2.05 | AR44: 2.05 | AS44: 2.05 | AT44: 2.05 | AU44: 2.05 | AV44: 2.05 | AW44: 2.05 | AX44: 2.05 | AY44: 2.05 | AZ44: 2.05 | BA44: 2.05 | BB44: 2.05 | BC44: 2.05 | BD44: 2.05 | BE44: 2.05 | BF44: 2.05 | BG44: 2.05 | BH44: 2.05 | BI44: 2.05 | BJ44: 2.05 | BK44: 2.05 | BL44: 2.05 | BM44: 2.05 | BN44: 2.05
D45: =D43 -$D$6 -> 1.9 | E45: =$D45 -> 1.9 | F45: 1.9 | G45: 1.9 | H45: 1.9 | I45: 1.9 | J45: 1.9 | K45: 1.9 | L45: 1.9 | M45: 1.9 | N45: 1.9 | O45: 1.9 | P45: 1.9 | Q45: 1.9 | R45: 1.9 | S45: 1.9 | T45: 1.9 | U45: =$D45 -> 1.9 | V45: 1.9 | W45: 1.9 | X45: 1.9 | Y45: 1.9 | Z45: 1.9 | AA45: 1.9 | AB45: 1.9 | AC45: 1.9 | AD45: 1.9 | AE45: 1.9 | AF45: 1.9 | AG45: 1.9 | AH45: 1.9 | AI45: 1.9 | AJ45: 1.9 | AK45: 1.9 | AL45: 1.9 | AM45: 1.9 | AN45: 1.9 | AO45: 1.9 | AP45: 1.9 | AQ45: 1.9 | AR45: 1.9 | AS45: 1.9 | AT45: 1.9 | AU45: 1.9 | AV45: 1.9 | AW45: 1.9 | AX45: 1.9 | AY45: 1.9 | AZ45: 1.9 | BA45: 1.9 | BB45: 1.9 | BC45: 1.9 | BD45: 1.9 | BE45: 1.9 | BF45: 1.9 | BG45: 1.9 | BH45: 1.9 | BI45: 1.9 | BJ45: 1.9 | BK45: 1.9 | BL45: 1.9 | BM45: 1.9 | BN45: 1.9
E46: =$D45-$D$6*0.5 -> 1.75 | F46: 1.75 | G46: 1.75 | H46: 1.75 | I46: 1.75 | J46: 1.75 | K46: 1.75 | L46: 1.75 | M46: 1.75 | N46: 1.75 | O46: 1.75 | P46: 1.75 | Q46: 1.75 | R46: 1.75 | S46: 1.75 | T46: 1.75 | U46: 1.75 | V46: 1.75 | W46: 1.75 | X46: 1.75 | Y46: 1.75 | Z46: 1.75 | AA46: 1.75 | AB46: 1.75 | AC46: 1.75 | AD46: 1.75 | AE46: 1.75 | AF46: 1.75 | AG46: 1.75 | AH46: 1.75 | AI46: 1.75 | AJ46: 1.75 | AK46: 1.75 | AL46: 1.75 | AM46: 1.75 | AN46: 1.75 | AO46: 1.75 | AP46: 1.75 | AQ46: 1.75 | AR46: 1.75 | AS46: 1.75 | AT46: 1.75 | AU46: 1.75 | AV46: 1.75 | AW46: 1.75 | AX46: 1.75 | AY46: 1.75 | AZ46: 1.75 | BA46: 1.75 | BB46: 1.75 | BC46: 1.75 | BD46: 1.75 | BE46: 1.75 | BF46: 1.75 | BG46: 1.75 | BH46: 1.75 | BI46: 1.75 | BJ46: 1.75 | BK46: 1.75 | BL46: 1.75 | BM46: 1.75 | BN46: 1.75
D47: =D45 -$D$6 -> 1.6 | E47: =$D47 -> 1.6 | F47: 1.6 | G47: 1.6 | H47: 1.6 | I47: 1.6 | J47: 1.6 | K47: 1.6 | L47: 1.6 | M47: 1.6 | N47: 1.6 | O47: 1.6 | P47: 1.6 | Q47: 1.6 | R47: 1.6 | S47: 1.6 | T47: 1.6 | U47: =$D47 -> 1.6 | V47: 1.6 | W47: 1.6 | X47: 1.6 | Y47: 1.6 | Z47: 1.6 | AA47: 1.6 | AB47: 1.6 | AC47: 1.6 | AD47: 1.6 | AE47: 1.6 | AF47: 1.6 | AG47: 1.6 | AH47: 1.6 | AI47: 1.6 | AJ47: 1.6 | AK47: 1.6 | AL47: 1.6 | AM47: 1.6 | AN47: 1.6 | AO47: 1.6 | AP47: 1.6 | AQ47: 1.6 | AR47: 1.6 | AS47: 1.6 | AT47: 1.6 | AU47: 1.6 | AV47: 1.6 | AW47: 1.6 | AX47: 1.6 | AY47: 1.6 | AZ47: 1.6 | BA47: 1.6 | BB47: 1.6 | BC47: 1.6 | BD47: 1.6 | BE47: 1.6 | BF47: 1.6 | BG47: 1.6 | BH47: 1.6 | BI47: 1.6 | BJ47: 1.6 | BK47: 1.6 | BL47: 1.6 | BM47: 1.6 | BN47: 1.6
E48: =$D47-$D$6*0.5 -> 1.45 | F48: 1.45 | G48: 1.45 | H48: 1.45 | I48: 1.45 | J48: 1.45 | K48: 1.45 | L48: 1.45 | M48: 1.45 | N48: 1.45 | O48: 1.45 | P48: 1.45 | Q48: 1.45 | R48: 1.45 | S48: 1.45 | T48: 1.45 | U48: 1.45 | V48: 1.45 | W48: 1.45 | X48: 1.45 | Y48: 1.45 | Z48: 1.45 | AA48: 1.45 | AB48: 1.45 | AC48: 1.45 | AD48: 1.45 | AE48: 1.45 | AF48: 1.45 | AG48: 1.45 | AH48: 1.45 | AI48: 1.45 | AJ48: 1.45 | AK48: 1.45 | AL48: 1.45 | AM48: 1.45 | AN48: 1.45 | AO48: 1.45 | AP48: 1.45 | AQ48: 1.45 | AR48: 1.45 | AS48: 1.45 | AT48: 1.45 | AU48: 1.45 | AV48: 1.45 | AW48: 1.45 | AX48: 1.45 | AY48: 1.45 | AZ48: 1.45 | BA48: 1.45 | BB48: 1.45 | BC48: 1.45 | BD48: 1.45 | BE48: 1.45 | BF48: 1.45 | BG48: 1.45 | BH48: 1.45 | BI48: 1.45 | BJ48: 1.45 | BK48: 1.45 | BL48: 1.45 | BM48: 1.45 | BN48: 1.45
D49: =D47 -$D$6 -> 1.3 | E49: =$D49 -> 1.3 | F49: 1.3 | G49: 1.3 | H49: 1.3 | I49: 1.3 | J49: 1.3 | K49: 1.3 | L49: 1.3 | M49: 1.3 | N49: 1.3 | O49: 1.3 | P49: 1.3 | Q49: 1.3 | R49: 1.3 | S49: 1.3 | T49: 1.3 | U49: =$D49 -> 1.3 | V49: 1.3 | W49: 1.3 | X49: 1.3 | Y49: 1.3 | Z49: 1.3 | AA49: 1.3 | AB49: 1.3 | AC49: 1.3 | AD49: 1.3 | AE49: 1.3 | AF49: 1.3 | AG49: 1.3 | AH49: 1.3 | AI49: 1.3 | AJ49: 1.3 | AK49: 1.3 | AL49: 1.3 | AM49: 1.3 | AN49: 1.3 | AO49: 1.3 | AP49: 1.3 | AQ49: 1.3 | AR49: 1.3 | AS49: 1.3 | AT49: 1.3 | AU49: 1.3 | AV49: 1.3 | AW49: 1.3 | AX49: 1.3 | AY49: 1.3 | AZ49: 1.3 | BA49: 1.3 | BB49: 1.3 | BC49: 1.3 | BD49: 1.3 | BE49: 1.3 | BF49: 1.3 | BG49: 1.3 | BH49: 1.3 | BI49: 1.3 | BJ49: 1.3 | BK49: 1.3 | BL49: 1.3 | BM49: 1.3 | BN49: 1.3
E50: =$D49-$D$6*0.5 -> 1.15 | F50: 1.15 | G50: 1.15 | H50: 1.15 | I50: 1.15 | J50: 1.15 | K50: 1.15 | L50: 1.15 | M50: 1.15 | N50: 1.15 | O50: 1.15 | P50: 1.15 | Q50: 1.15 | R50: 1.15 | S50: 1.15 | T50: 1.15 | U50: 1.15 | V50: 1.15 | W50: 1.15 | X50: 1.15 | Y50: 1.15 | Z50: 1.15 | AA50: 1.15 | AB50: 1.15 | AC50: 1.15 | AD50: 1.15 | AE50: 1.15 | AF50: 1.15 | AG50: 1.15 | AH50: 1.15 | AI50: 1.15 | AJ50: 1.15 | AK50: 1.15 | AL50: 1.15 | AM50: 1.15 | AN50: 1.15 | AO50: 1.15 | AP50: 1.15 | AQ50: 1.15 | AR50: 1.15 | AS50: 1.15 | AT50: 1.15 | AU50: 1.15 | AV50: 1.15 | AW50: 1.15 | AX50: 1.15 | AY50: 1.15 | AZ50: 1.15 | BA50: 1.15 | BB50: 1.15 | BC50: 1.15 | BD50: 1.15 | BE50: 1.15 | BF50: 1.15 | BG50: 1.15 | BH50: 1.15 | BI50: 1.15 | BJ50: 1.15 | BK50: 1.15 | BL50: 1.15 | BM50: 1.15 | BN50: 1.15
D51: =D49 -$D$6 -> 1 | E51: =$D51 -> 1 | F51: 1 | G51: 1 | H51: 1 | I51: 1 | J51: 1 | K51: 1 | L51: 1 | M51: 1 | N51: 1 | O51: 1 | P51: 1 | Q51: 1 | R51: 1 | S51: 1 | T51: 1 | U51: =$D51 -> 1 | V51: 1 | W51: 1 | X51: 1 | Y51: 1 | Z51: 1 | AA51: 1 | AB51: 1 | AC51: 1 | AD51: 1 | AE51: 1 | AF51: 1 | AG51: 1 | AH51: 1 | AI51: 1 | AJ51: 1 | AK51: 1 | AL51: 1 | AM51: 1 | AN51: 1 | AO51: 1 | AP51: 1 | AQ51: 1 | AR51: 1 | AS51: 1 | AT51: 1 | AU51: 1 | AV51: 1 | AW51: 1 | AX51: 1 | AY51: 1 | AZ51: 1 | BA51: 1 | BB51: 1 | BC51: 1 | BD51: 1 | BE51: 1 | BF51: 1 | BG51: 1 | BH51: 1 | BI51: 1 | BJ51: 1 | BK51: 1 | BL51: 1 | BM51: 1 | BN51: 1
E52: =$D51-$D$6*0.5 -> 0.85 | F52: 0.85 | G52: 0.85 | H52: 0.85 | I52: 0.85 | J52: 0.85 | K52: 0.85 | L52: 0.85 | M52: 0.85 | N52: 0.85 | O52: 0.85 | P52: 0.85 | Q52: 0.85 | R52: 0.85 | S52: 0.85 | T52: 0.85 | U52: 0.85 | V52: 0.85 | W52: 0.85 | X52: 0.85 | Y52: 0.85 | Z52: 0.85 | AA52: 0.85 | AB52: 0.85 | AC52: 0.85 | AD52: 0.85 | AE52: 0.85 | AF52: 0.85 | AG52: 0.85 | AH52: 0.85 | AI52: 0.85 | AJ52: 0.85 | AK52: 0.85 | AL52: 0.85 | AM52: 0.85 | AN52: 0.85 | AO52: 0.85 | AP52: 0.85 | AQ52: 0.85 | AR52: 0.85 | AS52: 0.85 | AT52: 0.85 | AU52: 0.85 | AV52: 0.85 | AW52: 0.85 | AX52: 0.85 | AY52: 0.85 | AZ52: 0.85 | BA52: 0.85 | BB52: 0.85 | BC52: 0.85 | BD52: 0.85 | BE52: 0.85 | BF52: 0.85 | BG52: 0.85 | BH52: 0.85 | BI52: 0.85 | BJ52: 0.85 | BK52: 0.85 | BL52: 0.85 | BM52: 0.85 | BN52: 0.85
D53: =D51 -$D$6 -> 0.7 | E53: =$D53 -> 0.7 | F53: 0.7 | G53: 0.7 | H53: 0.7 | I53: 0.7 | J53: 0.7 | K53: 0.7 | L53: 0.7 | M53: 0.7 | N53: 0.7 | O53: 0.7 | P53: 0.7 | Q53: 0.7 | R53: 0.7 | S53: 0.7 | T53: 0.7 | U53: =$D53 -> 0.7 | V53: 0.7 | W53: 0.7 | X53: 0.7 | Y53: 0.7 | Z53: 0.7 | AA53: 0.7 | AB53: 0.7 | AC53: 0.7 | AD53: 0.7 | AE53: 0.7 | AF53: 0.7 | AG53: 0.7 | AH53: 0.7 | AI53: 0.7 | AJ53: 0.7 | AK53: 0.7 | AL53: 0.7 | AM53: 0.7 | AN53: 0.7 | AO53: 0.7 | AP53: 0.7 | AQ53: 0.7 | AR53: 0.7 | AS53: 0.7 | AT53: 0.7 | AU53: 0.7 | AV53: 0.7 | AW53: 0.7 | AX53: 0.7 | AY53: 0.7 | AZ53: 0.7 | BA53: 0.7 | BB53: 0.7 | BC53: 0.7 | BD53: 0.7 | BE53: 0.7 | BF53: 0.7 | BG53: 0.7 | BH53: 0.7 | BI53: 0.7 | BJ53: 0.7 | BK53: 0.7 | BL53: 0.7 | BM53: 0.7 | BN53: 0.7
E54: =$D53-$D$6*0.5 -> 0.55 | F54: 0.55 | G54: 0.55 | H54: 0.55 | I54: 0.55 | J54: 0.55 | K54: 0.55 | L54: 0.55 | M54: 0.55 | N54: 0.55 | O54: 0.55 | P54: 0.55 | Q54: 0.55 | R54: 0.55 | S54: 0.55 | T54: 0.55 | U54: 0.55 | V54: 0.55 | W54: 0.55 | X54: 0.55 | Y54: 0.55 | Z54: 0.55 | AA54: 0.55 | AB54: 0.55 | AC54: 0.55 | AD54: 0.55 | AE54: 0.55 | AF54: 0.55 | AG54: 0.55 | AH54: 0.55 | AI54: 0.55 | AJ54: 0.55 | AK54: 0.55 | AL54: 0.55 | AM54: 0.55 | AN54: 0.55 | AO54: 0.55 | AP54: 0.55 | AQ54: 0.55 | AR54: 0.55 | AS54: 0.55 | AT54: 0.55 | AU54: 0.55 | AV54: 0.55 | AW54: 0.55 | AX54: 0.55 | AY54: 0.55 | AZ54: 0.55 | BA54: 0.55 | BB54: 0.55 | BC54: 0.55 | BD54: 0.55 | BE54: 0.55 | BF54: 0.55 | BG54: 0.55 | BH54: 0.55 | BI54: 0.55 | BJ54: 0.55 | BK54: 0.55 | BL54: 0.55 | BM54: 0.55 | BN54: 0.55
D55: =D53 -$D$6 -> 0.4 | E55: =$D55 -> 0.4 | F55: 0.4 | G55: 0.4 | H55: 0.4 | I55: 0.4 | J55: 0.4 | K55: 0.4 | L55: 0.4 | M55: 0.4 | N55: 0.4 | O55: 0.4 | P55: 0.4 | Q55: 0.4 | R55: 0.4 | S55: 0.4 | T55: 0.4 | U55: =$D55 -> 0.4 | V55: 0.4 | W55: 0.4 | X55: 0.4 | Y55: 0.4 | Z55: 0.4 | AA55: 0.4 | AB55: 0.4 | AC55: 0.4 | AD55: 0.4 | AE55: 0.4 | AF55: 0.4 | AG55: 0.4 | AH55: 0.4 | AI55: 0.4 | AJ55: 0.4 | AK55: 0.4 | AL55: 0.4 | AM55: 0.4 | AN55: 0.4 | AO55: 0.4 | AP55: 0.4 | AQ55: 0.4 | AR55: 0.4 | AS55: 0.4 | AT55: 0.4 | AU55: 0.4 | AV55: 0.4 | AW55: 0.4 | AX55: 0.4 | AY55: 0.4 | AZ55: 0.4 | BA55: 0.4 | BB55: 0.4 | BC55: 0.4 | BD55: 0.4 | BE55: 0.4 | BF55: 0.4 | BG55: 0.4 | BH55: 0.4 | BI55: 0.4 | BJ55: 0.4 | BK55: 0.4 | BL55: 0.4 | BM55: 0.4 | BN55: 0.4
E56: =$D55-$D$6*0.5 -> 0.25 | F56: 0.25 | G56: 0.25 | H56: 0.25 | I56: 0.25 | J56: 0.25 | K56: 0.25 | L56: 0.25 | M56: 0.25 | N56: 0.25 | O56: 0.25 | P56: 0.25 | Q56: 0.25 | R56: 0.25 | S56: 0.25 | T56: 0.25 | U56: 0.25 | V56: 0.25 | W56: 0.25 | X56: 0.25 | Y56: 0.25 | Z56: 0.25 | AA56: 0.25 | AB56: 0.25 | AC56: 0.25 | AD56: 0.25 | AE56: 0.25 | AF56: 0.25 | AG56: 0.25 | AH56: 0.25 | AI56: 0.25 | AJ56: 0.25 | AK56: 0.25 | AL56: 0.25 | AM56: 0.25 | AN56: 0.25 | AO56: 0.25 | AP56: 0.25 | AQ56: 0.25 | AR56: 0.25 | AS56: 0.25 | AT56: 0.25 | AU56: 0.25 | AV56: 0.25 | AW56: 0.25 | AX56: 0.25 | AY56: 0.25 | AZ56: 0.25 | BA56: 0.25 | BB56: 0.25 | BC56: 0.25 | BD56: 0.25 | BE56: 0.25 | BF56: 0.25 | BG56: 0.25 | BH56: 0.25 | BI56: 0.25 | BJ56: 0.25 | BK56: 0.25 | BL56: 0.25 | BM56: 0.25 | BN56: 0.25
D57: =D55 -$D$6 -> 0.1 | E57: =$D57 -> 0.1 | F57: =$D57 -> 0.1 | G57: 0.1 | H57: 0.1 | I57: 0.1 | J57: 0.1 | K57: 0.1 | L57: 0.1 | M57: 0.1 | N57: 0.1 | O57: 0.1 | P57: 0.1 | Q57: 0.1 | R57: 0.1 | S57: 0.1 | T57: 0.1 | U57: 0.1 | V57: 0.1 | W57: 0.1 | X57: 0.1 | Y57: 0.1 | Z57: 0.1 | AA57: 0.1 | AB57: 0.1 | AC57: 0.1 | AD57: 0.1 | AE57: 0.1 | AF57: 0.1 | AG57: 0.1 | AH57: 0.1 | AI57: 0.1 | AJ57: 0.1 | AK57: 0.1 | AL57: 0.1 | AM57: 0.1 | AN57: 0.1 | AO57: 0.1 | AP57: 0.1 | AQ57: 0.1 | AR57: 0.1 | AS57: 0.1 | AT57: 0.1 | AU57: 0.1 | AV57: 0.1 | AW57: 0.1 | AX57: 0.1 | AY57: 0.1 | AZ57: 0.1 | BA57: 0.1 | BB57: 0.1 | BC57: 0.1 | BD57: 0.1 | BE57: 0.1 | BF57: 0.1 | BG57: 0.1 | BH57: 0.1 | BI57: 0.1 | BJ57: 0.1 | BK57: 0.1 | BL57: 0.1 | BM57: 0.1 | BN57: 0.1
E58: =$D57-$D$6*0.5 -> -0.05 | F58: -0.05 | G58: -0.05 | H58: -0.05 | I58: -0.05 | J58: -0.05 | K58: -0.05 | L58: -0.05 | M58: -0.05 | N58: -0.05 | O58: -0.05 | P58: -0.05 | Q58: -0.05 | R58: -0.05 | S58: -0.05 | T58: -0.05 | U58: -0.05 | V58: -0.05 | W58: -0.05 | X58: -0.05 | Y58: -0.05 | Z58: -0.05 | AA58: -0.05 | AB58: -0.05 | AC58: -0.05 | AD58: -0.05 | AE58: -0.05 | AF58: -0.05 | AG58: -0.05 | AH58: -0.05 | AI58: -0.05 | AJ58: -0.05 | AK58: -0.05 | AL58: -0.05 | AM58: -0.05 | AN58: -0.05 | AO58: -0.05 | AP58: -0.05 | AQ58: -0.05 | AR58: -0.05 | AS58: -0.05 | AT58: -0.05 | AU58: -0.05 | AV58: -0.05 | AW58: -0.05 | AX58: -0.05 | AY58: -0.05 | AZ58: -0.05 | BA58: -0.05 | BB58: -0.05 | BC58: -0.05 | BD58: -0.05 | BE58: -0.05 | BF58: -0.05 | BG58: -0.05 | BH58: -0.05 | BI58: -0.05 | BJ58: -0.05 | BK58: -0.05 | BL58: -0.05 | BM58: -0.05 | BN58: -0.05
D59: =D57 -$D$6 -> -0.2 | E59: =$D59 -> -0.2 | F59: =$D59 -> -0.2 | G59: -0.2 | H59: -0.2 | I59: -0.2 | J59: -0.2 | K59: -0.2 | L59: -0.2 | M59: -0.2 | N59: -0.2 | O59: -0.2 | P59: -0.2 | Q59: -0.2 | R59: -0.2 | S59: -0.2 | T59: -0.2 | U59: -0.2 | V59: -0.2 | W59: -0.2 | X59: -0.2 | Y59: -0.2 | Z59: -0.2 | AA59: -0.2 | AB59: -0.2 | AC59: -0.2 | AD59: -0.2 | AE59: -0.2 | AF59: -0.2 | AG59: -0.2 | AH59: -0.2 | AI59: -0.2 | AJ59: -0.2 | AK59: -0.2 | AL59: -0.2 | AM59: -0.2 | AN59: -0.2 | AO59: -0.2 | AP59: -0.2 | AQ59: -0.2 | AR59: -0.2 | AS59: -0.2 | AT59: -0.2 | AU59: -0.2 | AV59: -0.2 | AW59: -0.2 | AX59: -0.2 | AY59: -0.2 | AZ59: -0.2 | BA59: -0.2 | BB59: -0.2 | BC59: -0.2 | BD59: -0.2 | BE59: -0.2 | BF59: -0.2 | BG59: -0.2 | BH59: -0.2 | BI59: -0.2 | BJ59: -0.2 | BK59: -0.2 | BL59: -0.2 | BM59: -0.2 | BN59: -0.2
E60: =$D59-$D$6*0.5 -> -0.35 | F60: -0.35 | G60: -0.35 | H60: -0.35 | I60: -0.35 | J60: -0.35 | K60: -0.35 | L60: -0.35 | M60: -0.35 | N60: -0.35 | O60: -0.35 | P60: -0.35 | Q60: -0.35 | R60: -0.35 | S60: -0.35 | T60: -0.35 | U60: -0.35 | V60: -0.35 | W60: -0.35 | X60: -0.35 | Y60: -0.35 | Z60: -0.35 | AA60: -0.35 | AB60: -0.35 | AC60: -0.35 | AD60: -0.35 | AE60: -0.35 | AF60: -0.35 | AG60: -0.35 | AH60: -0.35 | AI60: -0.35 | AJ60: -0.35 | AK60: -0.35 | AL60: -0.35 | AM60: -0.35 | AN60: -0.35 | AO60: -0.35 | AP60: -0.35 | AQ60: -0.35 | AR60: -0.35 | AS60: -0.35 | AT60: -0.35 | AU60: -0.35 | AV60: -0.35 | AW60: -0.35 | AX60: -0.35 | AY60: -0.35 | AZ60: -0.35 | BA60: -0.35 | BB60: -0.35 | BC60: -0.35 | BD60: -0.35 | BE60: -0.35 | BF60: -0.35 | BG60: -0.35 | BH60: -0.35 | BI60: -0.35 | BJ60: -0.35 | BK60: -0.35 | BL60: -0.35 | BM60: -0.35 | BN60: -0.35
B61: Day | E61: 1 | F61: 2 | G61: 3 | H61: 4 | I61: 5 | J61: 6 | K61: 7 | L61: 8 | M61: 9 | N61: 10 | O61: 11 | P61: 12 | Q61: 13 | R61: 14 | S61: 15 | T61: 16 | U61: 17 | V61: 18 | W61: 19 | X61: 20 | Y61: 21 | Z61: 22 | AA61: 23 | AB61: 24 | AC61: 25 | AD61: 26 | AE61: 27 | AF61: 28 | AG61: 29 | AH61: 30 | AI61: 31 | AJ61: 1 | AK61: 2 | AL61: 3 | AM61: 4 | AN61: 5 | AO61: 6 | AP61: 7 | AQ61: 8 | AR61: 9 | AS61: 10 | AT61: 11 | AU61: 12 | AV61: 13 | AW61: 14 | AX61: 15 | AY61: 16 | AZ61: 17 | BA61: 18 | BB61: 19 | BC61: 20 | BD61: 21 | BE61: 22 | BF61: 23 | BG61: 24 | BH61: 25 | BI61: 26 | BJ61: 27 | BK61: 28 | BL61: 29 | BM61: 30 | BN61: 31
B62: Month
B63: Audit
B65: ©2014-2025 Master Fluid Solutions | Because conditions of use are beyond our control, no guarantee, representation, or warranty expressed or implied is made. Consult Master Chemical Corporation for further information or appropriate operating ranges. | Updated: 2025-05-07

Sheet Makeup
H1: TRIM® RUN CHART | AL1: Techline Assistance: 800-537-3365
AL2: info@masterchemical.com
AL4: Min | AN4: Target | AR4: Max
B5: Product: | F5: TRIM® HyperSol™ 888NXT | S5: Brix: | V5: =VLOOKUP($F$5, 'Math-DO-NOT-Delete'!$A$2:$G$50,2,FALSE) -> 2.2 | X5: Makeup | AB5: Percent Concentration: | AL5: =VLOOKUP($F$5, 'Math-DO-NOT-Delete'!$A$2:$G$50,5, FALSE)*$X6 -> 2 | AN5: =VLOOKUP($F$5, 'Math-DO-NOT-Delete'!$A$2:$G$50,6, FALSE)*$X6 -> 3.2 | AR5: =VLOOKUP($F$5, 'Math-DO-NOT-Delete'!$A$2:$G$50,7, FALSE)*$X6 -> 4.8 | AT5: Company:
B6: Step: | D6: =ROUNDUP((($AR$6-$AL$6)*'Math-DO-NOT-Delete'!I2)/'Math-DO-NOT-Delete'!I3,1) -> 0.1 | E6: Check Refractometer Reading and Top Off Daily | X6: 0.4 | AB6: Refractometer Reading: | AL6: =AL5/$V5 -> 0.9090909091 | AN6: =ROUNDUP((AN5/$V5),1) -> 1.5 | AR6: =AR5/$V5 -> 2.181818182 | AT6: Machine:
D7: =D9 +$D$6 -> 2.8 | E7: =$D7 -> 2.8 | F7: 2.8 | G7: 2.8 | H7: 2.8 | I7: 2.8 | J7: 2.8 | K7: 2.8 | L7: 2.8 | M7: 2.8 | N7: 2.8 | O7: 2.8 | P7: 2.8 | Q7: 2.8 | R7: 2.8 | S7: 2.8 | T7: 2.8 | U7: =$D7 -> 2.8 | V7: 2.8 | W7: 2.8 | X7: 2.8 | Y7: 2.8 | Z7: 2.8 | AA7: 2.8 | AB7: 2.8 | AC7: 2.8 | AD7: 2.8 | AE7: 2.8 | AF7: 2.8 | AG7: 2.8 | AH7: 2.8 | AI7: 2.8 | AJ7: 2.8 | AK7: 2.8 | AL7: 2.8 | AM7: 2.8 | AN7: 2.8 | AO7: 2.8 | AP7: 2.8 | AQ7: 2.8 | AR7: 2.8 | AS7: 2.8 | AT7: 2.8 | AU7: 2.8 | AV7: 2.8 | AW7: 2.8 | AX7: 2.8 | AY7: 2.8 | AZ7: 2.8 | BA7: 2.8 | BB7: 2.8 | BC7: 2.8 | BD7: 2.8 | BE7: 2.8 | BF7: 2.8 | BG7: 2.8 | BH7: 2.8 | BI7: 2.8 | BJ7: 2.8 | BK7: 2.8 | BL7: 2.8 | BM7: 2.8 | BN7: 2.8
E8: =$D7-$D$6*0.5 -> 2.75 | F8: 2.75 | G8: 2.75 | H8: 2.75 | I8: 2.75 | J8: 2.75 | K8: 2.75 | L8: 2.75 | M8: 2.75 | N8: 2.75 | O8: 2.75 | P8: 2.75 | Q8: 2.75 | R8: 2.75 | S8: 2.75 | T8: 2.75 | U8: 2.75 | V8: 2.75 | W8: 2.75 | X8: 2.75 | Y8: 2.75 | Z8: 2.75 | AA8: 2.75 | AB8: 2.75 | AC8: 2.75 | AD8: 2.75 | AE8: 2.75 | AF8: 2.75 | AG8: 2.75 | AH8: 2.75 | AI8: 2.75 | AJ8: 2.75 | AK8: 2.75 | AL8: 2.75 | AM8: 2.75 | AN8: 2.75 | AO8: 2.75 | AP8: 2.75 | AQ8: 2.75 | AR8: 2.75 | AS8: 2.75 | AT8: 2.75 | AU8: 2.75 | AV8: 2.75 | AW8: 2.75 | AX8: 2.75 | AY8: 2.75 | AZ8: 2.75 | BA8: 2.75 | BB8: 2.75 | BC8: 2.75 | BD8: 2.75 | BE8: 2.75 | BF8: 2.75 | BG8: 2.75 | BH8: 2.75 | BI8: 2.75 | BJ8: 2.75 | BK8: 2.75 | BL8: 2.75 | BM8: 2.75 | BN8: 2.75
D9: =D11 +$D$6 -> 2.7 | E9: 2.7 | F9: 2.7 | G9: 2.7 | H9: 2.7 | I9: 2.7 | J9: 2.7 | K9: 2.7 | L9: 2.7 | M9: 2.7 | N9: 2.7 | O9: 2.7 | P9: 2.7 | Q9: 2.7 | R9: 2.7 | S9: 2.7 | T9: 2.7 | U9: =$D9 -> 2.7 | V9: 2.7 | W9: 2.7 | X9: 2.7 | Y9: 2.7 | Z9: 2.7 | AA9: 2.7 | AB9: 2.7 | AC9: 2.7 | AD9: 2.7 | AE9: 2.7 | AF9: 2.7 | AG9: 2.7 | AH9: 2.7 | AI9: 2.7 | AJ9: 2.7 | AK9: 2.7 | AL9: 2.7 | AM9: 2.7 | AN9: 2.7 | AO9: 2.7 | AP9: 2.7 | AQ9: 2.7 | AR9: 2.7 | AS9: 2.7 | AT9: 2.7 | AU9: 2.7 | AV9: 2.7 | AW9: 2.7 | AX9: 2.7 | AY9: 2.7 | AZ9: 2.7 | BA9: 2.7 | BB9: 2.7 | BC9: 2.7 | BD9: 2.7 | BE9: 2.7 | BF9: 2.7 | BG9: 2.7 | BH9: 2.7 | BI9: 2.7 | BJ9: 2.7 | BK9: 2.7 | BL9: 2.7 | BM9: 2.7 | BN9: 2.7
E10: =$D9-$D$6*0.5 -> 2.65 | F10: 2.65 | G10: 2.65 | H10: 2.65 | I10: 2.65 | J10: 2.65 | K10: 2.65 | L10: 2.65 | M10: 2.65 | N10: 2.65 | O10: 2.65 | P10: 2.65 | Q10: 2.65 | R10: 2.65 | S10: 2.65 | T10: 2.65 | U10: 2.65 | V10: 2.65 | W10: 2.65 | X10: 2.65 | Y10: 2.65 | Z10: 2.65 | AA10: 2.65 | AB10: 2.65 | AC10: 2.65 | AD10: 2.65 | AE10: 2.65 | AF10: 2.65 | AG10: 2.65 | AH10: 2.65 | AI10: 2.65 | AJ10: 2.65 | AK10: 2.65 | AL10: 2.65 | AM10: 2.65 | AN10: 2.65 | AO10: 2.65 | AP10: 2.65 | AQ10: 2.65 | AR10: 2.65 | AS10: 2.65 | AT10: 2.65 | AU10: 2.65 | AV10: 2.65 | AW10: 2.65 | AX10: 2.65 | AY10: 2.65 | AZ10: 2.65 | BA10: 2.65 | BB10: 2.65 | BC10: 2.65 | BD10: 2.65 | BE10: 2.65 | BF10: 2.65 | BG10: 2.65 | BH10: 2.65 | BI10: 2.65 | BJ10: 2.65 | BK10: 2.65 | BL10: 2.65 | BM10: 2.65 | BN10: 2.65
D11: =D13 +$D$6 -> 2.6 | E11: 2.6 | F11: 2.6 | G11: 2.6 | H11: 2.6 | I11: 2.6 | J11: 2.6 | K11: 2.6 | L11: 2.6 | M11: 2.6 | N11: 2.6 | O11: 2.6 | P11: 2.6 | Q11: 2.6 | R11: 2.6 | S11: 2.6 | T11: 2.6 | U11: =$D11 -> 2.6 | V11: 2.6 | W11: 2.6 | X11: 2.6 | Y11: 2.6 | Z11: 2.6 | AA11: 2.6 | AB11: 2.6 | AC11: 2.6 | AD11: 2.6 | AE11: 2.6 | AF11: 2.6 | AG11: 2.6 | AH11: 2.6 | AI11: 2.6 | AJ11: 2.6 | AK11: 2.6 | AL11: 2.6 | AM11: 2.6 | AN11: 2.6 | AO11: 2.6 | AP11: 2.6 | AQ11: 2.6 | AR11: 2.6 | AS11: 2.6 | AT11: 2.6 | AU11: 2.6 | AV11: 2.6 | AW11: 2.6 | AX11: 2.6 | AY11: 2.6 | AZ11: 2.6 | BA11: 2.6 | BB11: 2.6 | BC11: 2.6 | BD11: 2.6 | BE11: 2.6 | BF11: 2.6 | BG11: 2.6 | BH11: 2.6 | BI11: 2.6 | BJ11: 2.6 | BK11: 2.6 | BL11: 2.6 | BM11: 2.6 | BN11: 2.6
E12: =$D11-$D$6*0.5 -> 2.55 | F12: 2.55 | G12: 2.55 | H12: 2.55 | I12: 2.55 | J12: 2.55 | K12: 2.55 | L12: 2.55 | M12: 2.55 | N12: 2.55 | O12: 2.55 | P12: 2.55 | Q12: 2.55 | R12: 2.55 | S12: 2.55 | T12: 2.55 | U12: 2.55 | V12: 2.55 | W12: 2.55 | X12: 2.55 | Y12: 2.55 | Z12: 2.55 | AA12: 2.55 | AB12: 2.55 | AC12: 2.55 | AD12: 2.55 | AE12: 2.55 | AF12: 2.55 | AG12: 2.55 | AH12: 2.55 | AI12: 2.55 | AJ12: 2.55 | AK12: 2.55 | AL12: 2.55 | AM12: 2.55 | AN12: 2.55 | AO12: 2.55 | AP12: 2.55 | AQ12: 2.55 | AR12: 2.55 | AS12: 2.55 | AT12: 2.55 | AU12: 2.55 | AV12: 2.55 | AW12: 2.55 | AX12: 2.55 | AY12: 2.55 | AZ12: 2.55 | BA12: 2.55 | BB12: 2.55 | BC12: 2.55 | BD12: 2.55 | BE12: 2.55 | BF12: 2.55 | BG12: 2.55 | BH12: 2.55 | BI12: 2.55 | BJ12: 2.55 | BK12: 2.55 | BL12: 2.55 | BM12: 2.55 | BN12: 2.55
D13: =D15 +$D$6 -> 2.5 | E13: 2.5 | F13: 2.5 | G13: 2.5 | H13: 2.5 | I13: 2.5 | J13: 2.5 | K13: 2.5 | L13: 2.5 | M13: 2.5 | N13: 2.5 | O13: 2.5 | P13: 2.5 | Q13: 2.5 | R13: 2.5 | S13: 2.5 | T13: 2.5 | U13: =$D13 -> 2.5 | V13: 2.5 | W13: 2.5 | X13: 2.5 | Y13: 2.5 | Z13: 2.5 | AA13: 2.5 | AB13: 2.5 | AC13: 2.5 | AD13: 2.5 | AE13: 2.5 | AF13: 2.5 | AG13: 2.5 | AH13: 2.5 | AI13: 2.5 | AJ13: 2.5 | AK13: 2.5 | AL13: 2.5 | AM13: 2.5 | AN13: 2.5 | AO13: 2.5 | AP13: 2.5 | AQ13: 2.5 | AR13: 2.5 | AS13: 2.5 | AT13: 2.5 | AU13: 2.5 | AV13: 2.5 | AW13: 2.5 | AX13: 2.5 | AY13: 2.5 | AZ13: 2.5 | BA13: 2.5 | BB13: 2.5 | BC13: 2.5 | BD13: 2.5 | BE13: 2.5 | BF13: 2.5 | BG13: 2.5 | BH13: 2.5 | BI13: 2.5 | BJ13: 2.5 | BK13: 2.5 | BL13: 2.5 | BM13: 2.5 | BN13: 2.5
E14: =$D13-$D$6*0.5 -> 2.45 | F14: 2.45 | G14: 2.45 | H14: 2.45 | I14: 2.45 | J14: 2.45 | K14: 2.45 | L14: 2.45 | M14: 2.45 | N14: 2.45 | O14: 2.45 | P14: 2.45 | Q14: 2.45 | R14: 2.45 | S14: 2.45 | T14: 2.45 | U14: 2.45 | V14: 2.45 | W14: 2.45 | X14: 2.45 | Y14: 2.45 | Z14: 2.45 | AA14: 2.45 | AB14: 2.45 | AC14: 2.45 | AD14: 2.45 | AE14: 2.45 | AF14: 2.45 | AG14: 2.45 | AH14: 2.45 | AI14: 2.45 | AJ14: 2.45 | AK14: 2.45 | AL14: 2.45 | AM14: 2.45 | AN14: 2.45 | AO14: 2.45 | AP14: 2.45 | AQ14: 2.45 | AR14: 2.45 | AS14: 2.45 | AT14: 2.45 | AU14: 2.45 | AV14: 2.45 | AW14: 2.45 | AX14: 2.45 | AY14: 2.45 | AZ14: 2.45 | BA14: 2.45 | BB14: 2.45 | BC14: 2.45 | BD14: 2.45 | BE14: 2.45 | BF14: 2.45 | BG14: 2.45 | BH14: 2.45 | BI14: 2.45 | BJ14: 2.45 | BK14: 2.45 | BL14: 2.45 | BM14: 2.45 | BN14: 2.45
D15: =D17 +$D$6 -> 2.4 | E15: 2.4 | F15: 2.4 | G15: 2.4 | H15: 2.4 | I15: 2.4 | J15: 2.4 | K15: 2.4 | L15: 2.4 | M15: 2.4 | N15: 2.4 | O15: 2.4 | P15: 2.4 | Q15: 2.4 | R15: 2.4 | S15: 2.4 | T15: 2.4 | U15: =$D15 -> 2.4 | V15: 2.4 | W15: 2.4 | X15: 2.4 | Y15: 2.4 | Z15: 2.4 | AA15: 2.4 | AB15: 2.4 | AC15: 2.4 | AD15: 2.4 | AE15: 2.4 | AF15: 2.4 | AG15: 2.4 | AH15: 2.4 | AI15: 2.4 | AJ15: 2.4 | AK15: 2.4 | AL15: 2.4 | AM15: 2.4 | AN15: 2.4 | AO15: 2.4 | AP15: 2.4 | AQ15: 2.4 | AR15: 2.4 | AS15: 2.4 | AT15: 2.4 | AU15: 2.4 | AV15: 2.4 | AW15: 2.4 | AX15: 2.4 | AY15: 2.4 | AZ15: 2.4 | BA15: 2.4 | BB15: 2.4 | BC15: 2.4 | BD15: 2.4 | BE15: 2.4 | BF15: 2.4 | BG15: 2.4 | BH15: 2.4 | BI15: 2.4 | BJ15: 2.4 | BK15: 2.4 | BL15: 2.4 | BM15: 2.4 | BN15: 2.4
E16: =$D15-$D$6*0.5 -> 2.35 | F16: 2.35 | G16: 2.35 | H16: 2.35 | I16: 2.35 | J16: 2.35 | K16: 2.35 | L16: 2.35 | M16: 2.35 | N16: 2.35 | O16: 2.35 | P16: 2.35 | Q16: 2.35 | R16: 2.35 | S16: 2.35 | T16: 2.35 | U16: 2.35 | V16: 2.35 | W16: 2.35 | X16: 2.35 | Y16: 2.35 | Z16: 2.35 | AA16: 2.35 | AB16: 2.35 | AC16: 2.35 | AD16: 2.35 | AE16: 2.35 | AF16: 2.35 | AG16: 2.35 | AH16: 2.35 | AI16: 2.35 | AJ16: 2.35 | AK16: 2.35 | AL16: 2.35 | AM16: 2.35 | AN16: 2.35 | AO16: 2.35 | AP16: 2.35 | AQ16: 2.35 | AR16: 2.35 | AS16: 2.35 | AT16: 2.35 | AU16: 2.35 | AV16: 2.35 | AW16: 2.35 | AX16: 2.35 | AY16: 2.35 | AZ16: 2.35 | BA16: 2.35 | BB16: 2.35 | BC16: 2.35 | BD16: 2.35 | BE16: 2.35 | BF16: 2.35 | BG16: 2.35 | BH16: 2.35 | BI16: 2.35 | BJ16: 2.35 | BK16: 2.35 | BL16: 2.35 | BM16: 2.35 | BN16: 2.35
D17: =D19 +$D$6 -> 2.3 | E17: 2.3 | F17: 2.3 | G17: 2.3 | H17: 2.3 | I17: 2.3 | J17: 2.3 | K17: 2.3 | L17: 2.3 | M17: 2.3 | N17: 2.3 | O17: 2.3 | P17: 2.3 | Q17: 2.3 | R17: 2.3 | S17: 2.3 | T17: 2.3 | U17: =$D17 -> 2.3 | V17: 2.3 | W17: 2.3 | X17: 2.3 | Y17: 2.3 | Z17: 2.3 | AA17: 2.3 | AB17: 2.3 | AC17: 2.3 | AD17: 2.3 | AE17: 2.3 | AF17: 2.3 | AG17: 2.3 | AH17: 2.3 | AI17: 2.3 | AJ17: 2.3 | AK17: 2.3 | AL17: 2.3 | AM17: 2.3 | AN17: 2.3 | AO17: 2.3 | AP17: 2.3 | AQ17: 2.3 | AR17: 2.3 | AS17: 2.3 | AT17: 2.3 | AU17: 2.3 | AV17: 2.3 | AW17: 2.3 | AX17: 2.3 | AY17: 2.3 | AZ17: 2.3 | BA17: 2.3 | BB17: 2.3 | BC17: 2.3 | BD17: 2.3 | BE17: 2.3 | BF17: 2.3 | BG17: 2.3 | BH17: 2.3 | BI17: 2.3 | BJ17: 2.3 | BK17: 2.3 | BL17: 2.3 | BM17: 2.3 | BN17: 2.3
E18: =$D17-$D$6*0.5 -> 2.25 | F18: 2.25 | G18: 2.25 | H18: 2.25 | I18: 2.25 | J18: 2.25 | K18: 2.25 | L18: 2.25 | M18: 2.25 | N18: 2.25 | O18: 2.25 | P18: 2.25 | Q18: 2.25 | R18: 2.25 | S18: 2.25 | T18: 2.25 | U18: 2.25 | V18: 2.25 | W18: 2.25 | X18: 2.25 | Y18: 2.25 | Z18: 2.25 | AA18: 2.25 | AB18: 2.25 | AC18: 2.25 | AD18: 2.25 | AE18: 2.25 | AF18: 2.25 | AG18: 2.25 | AH18: 2.25 | AI18: 2.25 | AJ18: 2.25 | AK18: 2.25 | AL18: 2.25 | AM18: 2.25 | AN18: 2.25 | AO18: 2.25 | AP18: 2.25 | AQ18: 2.25 | AR18: 2.25 | AS18: 2.25 | AT18: 2.25 | AU18: 2.25 | AV18: 2.25 | AW18: 2.25 | AX18: 2.25 | AY18: 2.25 | AZ18: 2.25 | BA18: 2.25 | BB18: 2.25 | BC18: 2.25 | BD18: 2.25 | BE18: 2.25 | BF18: 2.25 | BG18: 2.25 | BH18: 2.25 | BI18: 2.25 | BJ18: 2.25 | BK18: 2.25 | BL18: 2.25 | BM18: 2.25 | BN18: 2.25
D19: =D21 +$D$6 -> 2.2 | E19: 2.2 | F19: 2.2 | G19: 2.2 | H19: 2.2 | I19: 2.2 | J19: 2.2 | K19: 2.2 | L19: 2.2 | M19: 2.2 | N19: 2.2 | O19: 2.2 | P19: 2.2 | Q19: 2.2 | R19: 2.2 | S19: 2.2 | T19: 2.2 | U19: =$D19 -> 2.2 | V19: 2.2 | W19: 2.2 | X19: 2.2 | Y19: 2.2 | Z19: 2.2 | AA19: 2.2 | AB19: 2.2 | AC19: 2.2 | AD19: 2.2 | AE19: 2.2 | AF19: 2.2 | AG19: 2.2 | AH19: 2.2 | AI19: 2.2 | AJ19: 2.2 | AK19: 2.2 | AL19: 2.2 | AM19: 2.2 | AN19: 2.2 | AO19: 2.2 | AP19: 2.2 | AQ19: 2.2 | AR19: 2.2 | AS19: 2.2 | AT19: 2.2 | AU19: 2.2 | AV19: 2.2 | AW19: 2.2 | AX19: 2.2 | AY19: 2.2 | AZ19: 2.2 | BA19: 2.2 | BB19: 2.2 | BC19: 2.2 | BD19: 2.2 | BE19: 2.2 | BF19: 2.2 | BG19: 2.2 | BH19: 2.2 | BI19: 2.2 | BJ19: 2.2 | BK19: 2.2 | BL19: 2.2 | BM19: 2.2 | BN19: 2.2
E20: =$D19-$D$6*0.5 -> 2.15 | F20: 2.15 | G20: 2.15 | H20: 2.15 | I20: 2.15 | J20: 2.15 | K20: 2.15 | L20: 2.15 | M20: 2.15 | N20: 2.15 | O20: 2.15 | P20: 2.15 | Q20: 2.15 | R20: 2.15 | S20: 2.15 | T20: 2.15 | U20: 2.15 | V20: 2.15 | W20: 2.15 | X20: 2.15 | Y20: 2.15 | Z20: 2.15 | AA20: 2.15 | AB20: 2.15 | AC20: 2.15 | AD20: 2.15 | AE20: 2.15 | AF20: 2.15 | AG20: 2.15 | AH20: 2.15 | AI20: 2.15 | AJ20: 2.15 | AK20: 2.15 | AL20: 2.15 | AM20: 2.15 | AN20: 2.15 | AO20: 2.15 | AP20: 2.15 | AQ20: 2.15 | AR20: 2.15 | AS20: 2.15 | AT20: 2.15 | AU20: 2.15 | AV20: 2.15 | AW20: 2.15 | AX20: 2.15 | AY20: 2.15 | AZ20: 2.15 | BA20: 2.15 | BB20: 2.15 | BC20: 2.15 | BD20: 2.15 | BE20: 2.15 | BF20: 2.15 | BG20: 2.15 | BH20: 2.15 | BI20: 2.15 | BJ20: 2.15 | BK20: 2.15 | BL20: 2.15 | BM20: 2.15 | BN20: 2.15
D21: =D23 +$D$6 -> 2.1 | E21: 2.1 | F21: 2.1 | G21: 2.1 | H21: 2.1 | I21: 2.1 | J21: 2.1 | K21: 2.1 | L21: 2.1 | M21: 2.1 | N21: 2.1 | O21: 2.1 | P21: 2.1 | Q21: 2.1 | R21: 2.1 | S21: 2.1 | T21: 2.1 | U21: =$D21 -> 2.1 | V21: 2.1 | W21: 2.1 | X21: 2.1 | Y21: 2.1 | Z21: 2.1 | AA21: 2.1 | AB21: 2.1 | AC21: 2.1 | AD21: 2.1 | AE21: 2.1 | AF21: 2.1 | AG21: 2.1 | AH21: 2.1 | AI21: 2.1 | AJ21: 2.1 | AK21: 2.1 | AL21: 2.1 | AM21: 2.1 | AN21: 2.1 | AO21: 2.1 | AP21: 2.1 | AQ21: 2.1 | AR21: 2.1 | AS21: 2.1 | AT21: 2.1 | AU21: 2.1 | AV21: 2.1 | AW21: 2.1 | AX21: 2.1 | AY21: 2.1 | AZ21: 2.1 | BA21: 2.1 | BB21: 2.1 | BC21: 2.1 | BD21: 2.1 | BE21: 2.1 | BF21: 2.1 | BG21: 2.1 | BH21: 2.1 | BI21: 2.1 | BJ21: 2.1 | BK21: 2.1 | BL21: 2.1 | BM21: 2.1 | BN21: 2.1
E22: =$D21-$D$6*0.5 -> 2.05 | F22: 2.05 | G22: 2.05 | H22: 2.05 | I22: 2.05 | J22: 2.05 | K22: 2.05 | L22: 2.05 | M22: 2.05 | N22: 2.05 | O22: 2.05 | P22: 2.05 | Q22: 2.05 | R22: 2.05 | S22: 2.05 | T22: 2.05 | U22: 2.05 | V22: 2.05 | W22: 2.05 | X22: 2.05 | Y22: 2.05 | Z22: 2.05 | AA22: 2.05 | AB22: 2.05 | AC22: 2.05 | AD22: 2.05 | AE22: 2.05 | AF22: 2.05 | AG22: 2.05 | AH22: 2.05 | AI22: 2.05 | AJ22: 2.05 | AK22: 2.05 | AL22: 2.05 | AM22: 2.05 | AN22: 2.05 | AO22: 2.05 | AP22: 2.05 | AQ22: 2.05 | AR22: 2.05 | AS22: 2.05 | AT22: 2.05 | AU22: 2.05 | AV22: 2.05 | AW22: 2.05 | AX22: 2.05 | AY22: 2.05 | AZ22: 2.05 | BA22: 2.05 | BB22: 2.05 | BC22: 2.05 | BD22: 2.05 | BE22: 2.05 | BF22: 2.05 | BG22: 2.05 | BH22: 2.05 | BI22: 2.05 | BJ22: 2.05 | BK22: 2.05 | BL22: 2.05 | BM22: 2.05 | BN22: 2.05
D23: =D25 +$D$6 -> 2 | E23: 2 | F23: 2 | G23: 2 | H23: 2 | I23: 2 | J23: 2 | K23: 2 | L23: 2 | M23: 2 | N23: 2 | O23: 2 | P23: 2 | Q23: 2 | R23: 2 | S23: 2 | T23: 2 | U23: =$D23 -> 2 | V23: 2 | W23: 2 | X23: 2 | Y23: 2 | Z23: 2 | AA23: 2 | AB23: 2 | AC23: 2 | AD23: 2 | AE23: 2 | AF23: 2 | AG23: 2 | AH23: 2 | AI23: 2 | AJ23: 2 | AK23: 2 | AL23: 2 | AM23: 2 | AN23: 2 | AO23: 2 | AP23: 2 | AQ23: 2 | AR23: 2 | AS23: 2 | AT23: 2 | AU23: 2 | AV23: 2 | AW23: 2 | AX23: 2 | AY23: 2 | AZ23: 2 | BA23: 2 | BB23: 2 | BC23: 2 | BD23: 2 | BE23: 2 | BF23: 2 | BG23: 2 | BH23: 2 | BI23: 2 | BJ23: 2 | BK23: 2 | BL23: 2 | BM23: 2 | BN23: 2
E24: =$D23-$D$6*0.5 -> 1.95 | F24: 1.95 | G24: 1.95 | H24: 1.95 | I24: 1.95 | J24: 1.95 | K24: 1.95 | L24: 1.95 | M24: 1.95 | N24: 1.95 | O24: 1.95 | P24: 1.95 | Q24: 1.95 | R24: 1.95 | S24: 1.95 | T24: 1.95 | U24: 1.95 | V24: 1.95 | W24: 1.95 | X24: 1.95 | Y24: 1.95 | Z24: 1.95 | AA24: 1.95 | AB24: 1.95 | AC24: 1.95 | AD24: 1.95 | AE24: 1.95 | AF24: 1.95 | AG24: 1.95 | AH24: 1.95 | AI24: 1.95 | AJ24: 1.95 | AK24: 1.95 | AL24: 1.95 | AM24: 1.95 | AN24: 1.95 | AO24: 1.95 | AP24: 1.95 | AQ24: 1.95 | AR24: 1.95 | AS24: 1.95 | AT24: 1.95 | AU24: 1.95 | AV24: 1.95 | AW24: 1.95 | AX24: 1.95 | AY24: 1.95 | AZ24: 1.95 | BA24: 1.95 | BB24: 1.95 | BC24: 1.95 | BD24: 1.95 | BE24: 1.95 | BF24: 1.95 | BG24: 1.95 | BH24: 1.95 | BI24: 1.95 | BJ24: 1.95 | BK24: 1.95 | BL24: 1.95 | BM24: 1.95 | BN24: 1.95
D25: =D27 +$D$6 -> 1.9 | E25: 1.9 | F25: 1.9 | G25: 1.9 | H25: 1.9 | I25: 1.9 | J25: 1.9 | K25: 1.9 | L25: 1.9 | M25: 1.9 | N25: 1.9 | O25: 1.9 | P25: 1.9 | Q25: 1.9 | R25: 1.9 | S25: 1.9 | T25: 1.9 | U25: =$D25 -> 1.9 | V25: 1.9 | W25: 1.9 | X25: 1.9 | Y25: 1.9 | Z25: 1.9 | AA25: 1.9 | AB25: 1.9 | AC25: 1.9 | AD25: 1.9 | AE25: 1.9 | AF25: 1.9 | AG25: 1.9 | AH25: 1.9 | AI25: 1.9 | AJ25: 1.9 | AK25: 1.9 | AL25: 1.9 | AM25: 1.9 | AN25: 1.9 | AO25: 1.9 | AP25: 1.9 | AQ25: 1.9 | AR25: 1.9 | AS25: 1.9 | AT25: 1.9 | AU25: 1.9 | AV25: 1.9 | AW25: 1.9 | AX25: 1.9 | AY25: 1.9 | AZ25: 1.9 | BA25: 1.9 | BB25: 1.9 | BC25: 1.9 | BD25: 1.9 | BE25: 1.9 | BF25: 1.9 | BG25: 1.9 | BH25: 1.9 | BI25: 1.9 | BJ25: 1.9 | BK25: 1.9 | BL25: 1.9 | BM25: 1.9 | BN25: 1.9
E26: =$D25-$D$6*0.5 -> 1.85 | F26: 1.85 | G26: 1.85 | H26: 1.85 | I26: 1.85 | J26: 1.85 | K26: 1.85 | L26: 1.85 | M26: 1.85 | N26: 1.85 | O26: 1.85 | P26: 1.85 | Q26: 1.85 | R26: 1.85 | S26: 1.85 | T26: 1.85 | U26: 1.85 | V26: 1.85 | W26: 1.85 | X26: 1.85 | Y26: 1.85 | Z26: 1.85 | AA26: 1.85 | AB26: 1.85 | AC26: 1.85 | AD26: 1.85 | AE26: 1.85 | AF26: 1.85 | AG26: 1.85 | AH26: 1.85 | AI26: 1.85 | AJ26: 1.85 | AK26: 1.85 | AL26: 1.85 | AM26: 1.85 | AN26: 1.85 | AO26: 1.85 | AP26: 1.85 | AQ26: 1.85 | AR26: 1.85 | AS26: 1.85 | AT26: 1.85 | AU26: 1.85 | AV26: 1.85 | AW26: 1.85 | AX26: 1.85 | AY26: 1.85 | AZ26: 1.85 | BA26: 1.85 | BB26: 1.85 | BC26: 1.85 | BD26: 1.85 | BE26: 1.85 | BF26: 1.85 | BG26: 1.85 | BH26: 1.85 | BI26: 1.85 | BJ26: 1.85 | BK26: 1.85 | BL26: 1.85 | BM26: 1.85 | BN26: 1.85
D27: =D29 +$D$6 -> 1.8 | E27: 1.8 | F27: 1.8 | G27: 1.8 | H27: 1.8 | I27: 1.8 | J27: 1.8 | K27: 1.8 | L27: 1.8 | M27: 1.8 | N27: 1.8 | O27: 1.8 | P27: 1.8 | Q27: 1.8 | R27: 1.8 | S27: 1.8 | T27: 1.8 | U27: =$D27 -> 1.8 | V27: 1.8 | W27: 1.8 | X27: 1.8 | Y27: 1.8 | Z27: 1.8 | AA27: 1.8 | AB27: 1.8 | AC27: 1.8 | AD27: 1.8 | AE27: 1.8 | AF27: 1.8 | AG27: 1.8 | AH27: 1.8 | AI27: 1.8 | AJ27: 1.8 | AK27: 1.8 | AL27: 1.8 | AM27: 1.8 | AN27: 1.8 | AO27: 1.8 | AP27: 1.8 | AQ27: 1.8 | AR27: 1.8 | AS27: 1.8 | AT27: 1.8 | AU27: 1.8 | AV27: 1.8 | AW27: 1.8 | AX27: 1.8 | AY27: 1.8 | AZ27: 1.8 | BA27: 1.8 | BB27: 1.8 | BC27: 1.8 | BD27: 1.8 | BE27: 1.8 | BF27: 1.8 | BG27: 1.8 | BH27: 1.8 | BI27: 1.8 | BJ27: 1.8 | BK27: 1.8 | BL27: 1.8 | BM27: 1.8 | BN27: 1.8
E28: =$D27-$D$6*0.5 -> 1.75 | F28: 1.75 | G28: 1.75 | H28: 1.75 | I28: 1.75 | J28: 1.75 | K28: 1.75 | L28: 1.75 | M28: 1.75 | N28: 1.75 | O28: 1.75 | P28: 1.75 | Q28: 1.75 | R28: 1.75 | S28: 1.75 | T28: 1.75 | U28: 1.75 | V28: 1.75 | W28: 1.75 | X28: 1.75 | Y28: 1.75 | Z28: 1.75 | AA28: 1.75 | AB28: 1.75 | AC28: 1.75 | AD28: 1.75 | AE28: 1.75 | AF28: 1.75 | AG28: 1.75 | AH28: 1.75 | AI28: 1.75 | AJ28: 1.75 | AK28: 1.75 | AL28: 1.75 | AM28: 1.75 | AN28: 1.75 | AO28: 1.75 | AP28: 1.75 | AQ28: 1.75 | AR28: 1.75 | AS28: 1.75 | AT28: 1.75 | AU28: 1.75 | AV28: 1.75 | AW28: 1.75 | AX28: 1.75 | AY28: 1.75 | AZ28: 1.75 | BA28: 1.75 | BB28: 1.75 | BC28: 1.75 | BD28: 1.75 | BE28: 1.75 | BF28: 1.75 | BG28: 1.75 | BH28: 1.75 | BI28: 1.75 | BJ28: 1.75 | BK28: 1.75 | BL28: 1.75 | BM28: 1.75 | BN28: 1.75
D29: =D31 +$D$6 -> 1.7 | E29: 1.7 | F29: 1.7 | G29: 1.7 | H29: 1.7 | I29: 1.7 | J29: 1.7 | K29: 1.7 | L29: 1.7 | M29: 1.7 | N29: 1.7 | O29: 1.7 | P29: 1.7 | Q29: 1.7 | R29: 1.7 | S29: 1.7 | T29: 1.7 | U29: =$D29 -> 1.7 | V29: 1.7 | W29: 1.7 | X29: 1.7 | Y29: 1.7 | Z29: 1.7 | AA29: 1.7 | AB29: 1.7 | AC29: 1.7 | AD29: 1.7 | AE29: 1.7 | AF29: 1.7 | AG29: 1.7 | AH29: 1.7 | AI29: 1.7 | AJ29: 1.7 | AK29: 1.7 | AL29: 1.7 | AM29: 1.7 | AN29: 1.7 | AO29: 1.7 | AP29: 1.7 | AQ29: 1.7 | AR29: 1.7 | AS29: 1.7 | AT29: 1.7 | AU29: 1.7 | AV29: 1.7 | AW29: 1.7 | AX29: 1.7 | AY29: 1.7 | AZ29: 1.7 | BA29: 1.7 | BB29: 1.7 | BC29: 1.7 | BD29: 1.7 | BE29: 1.7 | BF29: 1.7 | BG29: 1.7 | BH29: 1.7 | BI29: 1.7 | BJ29: 1.7 | BK29: 1.7 | BL29: 1.7 | BM29: 1.7 | BN29: 1.7
E30: =$D29-$D$6*0.5 -> 1.65 | F30: 1.65 | G30: 1.65 | H30: 1.65 | I30: 1.65 | J30: 1.65 | K30: 1.65 | L30: 1.65 | M30: 1.65 | N30: 1.65 | O30: 1.65 | P30: 1.65 | Q30: 1.65 | R30: 1.65 | S30: 1.65 | T30: 1.65 | U30: 1.65 | V30: 1.65 | W30: 1.65 | X30: 1.65 | Y30: 1.65 | Z30: 1.65 | AA30: 1.65 | AB30: 1.65 | AC30: 1.65 | AD30: 1.65 | AE30: 1.65 | AF30: 1.65 | AG30: 1.65 | AH30: 1.65 | AI30: 1.65 | AJ30: 1.65 | AK30: 1.65 | AL30: 1.65 | AM30: 1.65 | AN30: 1.65 | AO30: 1.65 | AP30: 1.65 | AQ30: 1.65 | AR30: 1.65 | AS30: 1.65 | AT30: 1.65 | AU30: 1.65 | AV30: 1.65 | AW30: 1.65 | AX30: 1.65 | AY30: 1.65 | AZ30: 1.65 | BA30: 1.65 | BB30: 1.65 | BC30: 1.65 | BD30: 1.65 | BE30: 1.65 | BF30: 1.65 | BG30: 1.65 | BH30: 1.65 | BI30: 1.65 | BJ30: 1.65 | BK30: 1.65 | BL30: 1.65 | BM30: 1.65 | BN30: 1.65
D31: =D33 +$D$6 -> 1.6 | E31: 1.6 | F31: 1.6 | G31: 1.6 | H31: 1.6 | I31: 1.6 | J31: 1.6 | K31: 1.6 | L31: 1.6 | M31: 1.6 | N31: 1.6 | O31: 1.6 | P31: 1.6 | Q31: 1.6 | R31: 1.6 | S31: 1.6 | T31: 1.6 | U31: =$D31 -> 1.6 | V31: 1.6 | W31: 1.6 | X31: 1.6 | Y31: 1.6 | Z31: 1.6 | AA31: 1.6 | AB31: 1.6 | AC31: 1.6 | AD31: 1.6 | AE31: 1.6 | AF31: 1.6 | AG31: 1.6 | AH31: 1.6 | AI31: 1.6 | AJ31: 1.6 | AK31: 1.6 | AL31: 1.6 | AM31: 1.6 | AN31: 1.6 | AO31: 1.6 | AP31: 1.6 | AQ31: 1.6 | AR31: 1.6 | AS31: 1.6 | AT31: 1.6 | AU31: 1.6 | AV31: 1.6 | AW31: 1.6 | AX31: 1.6 | AY31: 1.6 | AZ31: 1.6 | BA31: 1.6 | BB31: 1.6 | BC31: 1.6 | BD31: 1.6 | BE31: 1.6 | BF31: 1.6 | BG31: 1.6 | BH31: 1.6 | BI31: 1.6 | BJ31: 1.6 | BK31: 1.6 | BL31: 1.6 | BM31: 1.6 | BN31: 1.6
E32: =$D31-$D$6*0.5 -> 1.55 | F32: =$D31-$D$6*0.5 -> 1.55 | G32: 1.55 | H32: 1.55 | I32: 1.55 | J32: 1.55 | K32: 1.55 | L32: 1.55 | M32: 1.55 | N32: 1.55 | O32: 1.55 | P32: 1.55 | Q32: 1.55 | R32: 1.55 | S32: 1.55 | T32: 1.55 | U32: 1.55 | V32: 1.55 | W32: 1.55 | X32: 1.55 | Y32: 1.55 | Z32: 1.55 | AA32: 1.55 | AB32: 1.55 | AC32: 1.55 | AD32: 1.55 | AE32: 1.55 | AF32: 1.55 | AG32: 1.55 | AH32: 1.55 | AI32: 1.55 | AJ32: 1.55 | AK32: 1.55 | AL32: 1.55 | AM32: 1.55 | AN32: 1.55 | AO32: 1.55 | AP32: 1.55 | AQ32: 1.55 | AR32: 1.55 | AS32: 1.55 | AT32: 1.55 | AU32: 1.55 | AV32: 1.55 | AW32: 1.55 | AX32: 1.55 | AY32: 1.55 | AZ32: 1.55 | BA32: 1.55 | BB32: 1.55 | BC32: 1.55 | BD32: 1.55 | BE32: 1.55 | BF32: 1.55 | BG32: 1.55 | BH32: 1.55 | BI32: 1.55 | BJ32: 1.55 | BK32: 1.55 | BL32: 1.55 | BM32: 1.55 | BN32: 1.55
D33: =AN6 -> 1.5 | E33: 1.5 | F33: 1.5 | G33: 1.5 | H33: 1.5 | I33: 1.5 | J33: 1.5 | K33: 1.5 | L33: 1.5 | M33: 1.5 | N33: 1.5 | O33: 1.5 | P33: 1.5 | Q33: 1.5 | R33: 1.5 | S33: 1.5 | T33: 1.5 | U33: =$D33 -> 1.5 | V33: 1.5 | W33: 1.5 | X33: 1.5 | Y33: 1.5 | Z33: 1.5 | AA33: 1.5 | AB33: 1.5 | AC33: 1.5 | AD33: 1.5 | AE33: 1.5 | AF33: 1.5 | AG33: 1.5 | AH33: 1.5 | AI33: 1.5 | AJ33: 1.5 | AK33: 1.5 | AL33: 1.5 | AM33: 1.5 | AN33: 1.5 | AO33: 1.5 | AP33: 1.5 | AQ33: 1.5 | AR33: 1.5 | AS33: 1.5 | AT33: 1.5 | AU33: 1.5 | AV33: 1.5 | AW33: 1.5 | AX33: 1.5 | AY33: 1.5 | AZ33: 1.5 | BA33: 1.5 | BB33: 1.5 | BC33: 1.5 | BD33: 1.5 | BE33: 1.5 | BF33: 1.5 | BG33: 1.5 | BH33: 1.5 | BI33: 1.5 | BJ33: 1.5 | BK33: 1.5 | BL33: 1.5 | BM33: 1.5 | BN33: 1.5
E34: =$D33-$D$6*0.5 -> 1.45 | F34: 1.45 | G34: 1.45 | H34: 1.45 | I34: 1.45 | J34: 1.45 | K34: 1.45 | L34: 1.45 | M34: 1.45 | N34: 1.45 | O34: 1.45 | P34: 1.45 | Q34: 1.45 | R34: 1.45 | S34: 1.45 | T34: 1.45 | U34: 1.45 | V34: 1.45 | W34: 1.45 | X34: 1.45 | Y34: 1.45 | Z34: 1.45 | AA34: 1.45 | AB34: 1.45 | AC34: 1.45 | AD34: 1.45 | AE34: 1.45 | AF34: 1.45 | AG34: 1.45 | AH34: 1.45 | AI34: 1.45 | AJ34: 1.45 | AK34: 1.45 | AL34: 1.45 | AM34: 1.45 | AN34: 1.45 | AO34: 1.45 | AP34: 1.45 | AQ34: 1.45 | AR34: 1.45 | AS34: 1.45 | AT34: 1.45 | AU34: 1.45 | AV34: 1.45 | AW34: 1.45 | AX34: 1.45 | AY34: 1.45 | AZ34: 1.45 | BA34: 1.45 | BB34: 1.45 | BC34: 1.45 | BD34: 1.45 | BE34: 1.45 | BF34: 1.45 | BG34: 1.45 | BH34: 1.45 | BI34: 1.45 | BJ34: 1.45 | BK34: 1.45 | BL34: 1.45 | BM34: 1.45 | BN34: 1.45
D35: =D33 -$D$6 -> 1.4 | E35: =$D35 -> 1.4 | F35: 1.4 | G35: 1.4 | H35: 1.4 | I35: 1.4 | J35: 1.4 | K35: 1.4 | L35: 1.4 | M35: 1.4 | N35: 1.4 | O35: 1.4 | P35: 1.4 | Q35: 1.4 | R35: 1.4 | S35: 1.4 | T35: 1.4 | U35: 1.4 | V35: 1.4 | W35: 1.4 | X35: 1.4 | Y35: 1.4 | Z35: 1.4 | AA35: 1.4 | AB35: 1.4 | AC35: 1.4 | AD35: 1.4 | AE35: 1.4 | AF35: 1.4 | AG35: 1.4 | AH35: 1.4 | AI35: 1.4 | AJ35: 1.4 | AK35: 1.4 | AL35: 1.4 | AM35: 1.4 | AN35: 1.4 | AO35: 1.4 | AP35: 1.4 | AQ35: 1.4 | AR35: 1.4 | AS35: 1.4 | AT35: 1.4 | AU35: 1.4 | AV35: 1.4 | AW35: 1.4 | AX35: 1.4 | AY35: 1.4 | AZ35: 1.4 | BA35: 1.4 | BB35: 1.4 | BC35: 1.4 | BD35: 1.4 | BE35: 1.4 | BF35: 1.4 | BG35: 1.4 | BH35: 1.4 | BI35: 1.4 | BJ35: 1.4 | BK35: 1.4 | BL35: 1.4 | BM35: 1.4 | BN35: 1.4
E36: =$D35-$D$6*0.5 -> 1.35 | F36: 1.35 | G36: 1.35 | H36: 1.35 | I36: 1.35 | J36: 1.35 | K36: 1.35 | L36: 1.35 | M36: 1.35 | N36: 1.35 | O36: 1.35 | P36: 1.35 | Q36: 1.35 | R36: 1.35 | S36: 1.35 | T36: 1.35 | U36: 1.35 | V36: 1.35 | W36: 1.35 | X36: 1.35 | Y36: 1.35 | Z36: 1.35 | AA36: 1.35 | AB36: 1.35 | AC36: 1.35 | AD36: 1.35 | AE36: 1.35 | AF36: 1.35 | AG36: 1.35 | AH36: 1.35 | AI36: 1.35 | AJ36: 1.35 | AK36: 1.35 | AL36: 1.35 | AM36: 1.35 | AN36: 1.35 | AO36: 1.35 | AP36: 1.35 | AQ36: 1.35 | AR36: 1.35 | AS36: 1.35 | AT36: 1.35 | AU36: 1.35 | AV36: 1.35 | AW36: 1.35 | AX36: 1.35 | AY36: 1.35 | AZ36: 1.35 | BA36: 1.35 | BB36: 1.35 | BC36: 1.35 | BD36: 1.35 | BE36: 1.35 | BF36: 1.35 | BG36: 1.35 | BH36: 1.35 | BI36: 1.35 | BJ36: 1.35 | BK36: 1.35 | BL36: 1.35 | BM36: 1.35 | BN36: 1.35
D37: =D35 -$D$6 -> 1.3 | E37: =$D37 -> 1.3 | F37: 1.3 | G37: 1.3 | H37: 1.3 | I37: 1.3 | J37: 1.3 | K37: 1.3 | L37: 1.3 | M37: 1.3 | N37: 1.3 | O37: 1.3 | P37: 1.3 | Q37: 1.3 | R37: 1.3 | S37: 1.3 | T37: 1.3 | U37: 1.3 | V37: 1.3 | W37: 1.3 | X37: 1.3 | Y37: 1.3 | Z37: 1.3 | AA37: 1.3 | AB37: 1.3 | AC37: 1.3 | AD37: 1.3 | AE37: 1.3 | AF37: 1.3 | AG37: 1.3 | AH37: 1.3 | AI37: 1.3 | AJ37: 1.3 | AK37: 1.3 | AL37: 1.3 | AM37: 1.3 | AN37: 1.3 | AO37: 1.3 | AP37: 1.3 | AQ37: 1.3 | AR37: 1.3 | AS37: 1.3 | AT37: 1.3 | AU37: 1.3 | AV37: 1.3 | AW37: 1.3 | AX37: 1.3 | AY37: 1.3 | AZ37: 1.3 | BA37: 1.3 | BB37: 1.3 | BC37: 1.3 | BD37: 1.3 | BE37: 1.3 | BF37: 1.3 | BG37: 1.3 | BH37: 1.3 | BI37: 1.3 | BJ37: 1.3 | BK37: 1.3 | BL37: 1.3 | BM37: 1.3 | BN37: 1.3
E38: =$D37-$D$6*0.5 -> 1.25 | F38: 1.25 | G38: 1.25 | H38: 1.25 | I38: 1.25 | J38: 1.25 | K38: 1.25 | L38: 1.25 | M38: 1.25 | N38: 1.25 | O38: 1.25 | P38: 1.25 | Q38: 1.25 | R38: 1.25 | S38: 1.25 | T38: 1.25 | U38: 1.25 | V38: 1.25 | W38: 1.25 | X38: 1.25 | Y38: 1.25 | Z38: 1.25 | AA38: 1.25 | AB38: 1.25 | AC38: 1.25 | AD38: 1.25 | AE38: 1.25 | AF38: 1.25 | AG38: 1.25 | AH38: 1.25 | AI38: 1.25 | AJ38: 1.25 | AK38: 1.25 | AL38: 1.25 | AM38: 1.25 | AN38: 1.25 | AO38: 1.25 | AP38: 1.25 | AQ38: 1.25 | AR38: 1.25 | AS38: 1.25 | AT38: 1.25 | AU38: 1.25 | AV38: 1.25 | AW38: 1.25 | AX38: 1.25 | AY38: 1.25 | AZ38: 1.25 | BA38: 1.25 | BB38: 1.25 | BC38: 1.25 | BD38: 1.25 | BE38: 1.25 | BF38: 1.25 | BG38: 1.25 | BH38: 1.25 | BI38: 1.25 | BJ38: 1.25 | BK38: 1.25 | BL38: 1.25 | BM38: 1.25 | BN38: 1.25
D39: =D37 -$D$6 -> 1.2 | E39: =$D39 -> 1.2 | F39: 1.2 | G39: 1.2 | H39: 1.2 | I39: 1.2 | J39: 1.2 | K39: 1.2 | L39: 1.2 | M39: 1.2 | N39: 1.2 | O39: 1.2 | P39: 1.2 | Q39: 1.2 | R39: 1.2 | S39: 1.2 | T39: 1.2 | U39: 1.2 | V39: 1.2 | W39: 1.2 | X39: 1.2 | Y39: 1.2 | Z39: 1.2 | AA39: 1.2 | AB39: 1.2 | AC39: 1.2 | AD39: 1.2 | AE39: 1.2 | AF39: 1.2 | AG39: 1.2 | AH39: 1.2 | AI39: 1.2 | AJ39: 1.2 | AK39: 1.2 | AL39: 1.2 | AM39: 1.2 | AN39: 1.2 | AO39: 1.2 | AP39: 1.2 | AQ39: 1.2 | AR39: 1.2 | AS39: 1.2 | AT39: 1.2 | AU39: 1.2 | AV39: 1.2 | AW39: 1.2 | AX39: 1.2 | AY39: 1.2 | AZ39: 1.2 | BA39: 1.2 | BB39: 1.2 | BC39: 1.2 | BD39: 1.2 | BE39: 1.2 | BF39: 1.2 | BG39: 1.2 | BH39: 1.2 | BI39: 1.2 | BJ39: 1.2 | BK39: 1.2 | BL39: 1.2 | BM39: 1.2 | BN39: 1.2
E40: =$D39-$D$6*0.5 -> 1.15 | F40: 1.15 | G40: 1.15 | H40: 1.15 | I40: 1.15 | J40: 1.15 | K40: 1.15 | L40: 1.15 | M40: 1.15 | N40: 1.15 | O40: 1.15 | P40: 1.15 | Q40: 1.15 | R40: 1.15 | S40: 1.15 | T40: 1.15 | U40: 1.15 | V40: 1.15 | W40: 1.15 | X40: 1.15 | Y40: 1.15 | Z40: 1.15 | AA40: 1.15 | AB40: 1.15 | AC40: 1.15 | AD40: 1.15 | AE40: 1.15 | AF40: 1.15 | AG40: 1.15 | AH40: 1.15 | AI40: 1.15 | AJ40: 1.15 | AK40: 1.15 | AL40: 1.15 | AM40: 1.15 | AN40: 1.15 | AO40: 1.15 | AP40: 1.15 | AQ40: 1.15 | AR40: 1.15 | AS40: 1.15 | AT40: 1.15 | AU40: 1.15 | AV40: 1.15 | AW40: 1.15 | AX40: 1.15 | AY40: 1.15 | AZ40: 1.15 | BA40: 1.15 | BB40: 1.15 | BC40: 1.15 | BD40: 1.15 | BE40: 1.15 | BF40: 1.15 | BG40: 1.15 | BH40: 1.15 | BI40: 1.15 | BJ40: 1.15 | BK40: 1.15 | BL40: 1.15 | BM40: 1.15 | BN40: 1.15
D41: =D39 -$D$6 -> 1.1 | E41: =$D41 -> 1.1 | F41: 1.1 | G41: 1.1 | H41: 1.1 | I41: 1.1 | J41: 1.1 | K41: 1.1 | L41: 1.1 | M41: 1.1 | N41: 1.1 | O41: 1.1 | P41: 1.1 | Q41: 1.1 | R41: 1.1 | S41: 1.1 | T41: 1.1 | U41: 1.1 | V41: 1.1 | W41: 1.1 | X41: 1.1 | Y41: 1.1 | Z41: 1.1 | AA41: 1.1 | AB41: 1.1 | AC41: 1.1 | AD41: 1.1 | AE41: 1.1 | AF41: 1.1 | AG41: 1.1 | AH41: 1.1 | AI41: 1.1 | AJ41: 1.1 | AK41: 1.1 | AL41: 1.1 | AM41: 1.1 | AN41: 1.1 | AO41: 1.1 | AP41: 1.1 | AQ41: 1.1 | AR41: 1.1 | AS41: 1.1 | AT41: 1.1 | AU41: 1.1 | AV41: 1.1 | AW41: 1.1 | AX41: 1.1 | AY41: 1.1 | AZ41: 1.1 | BA41: 1.1 | BB41: 1.1 | BC41: 1.1 | BD41: 1.1 | BE41: 1.1 | BF41: 1.1 | BG41: 1.1 | BH41: 1.1 | BI41: 1.1 | BJ41: 1.1 | BK41: 1.1 | BL41: 1.1 | BM41: 1.1 | BN41: 1.1
E42: =$D41-$D$6*0.5 -> 1.05 | F42: 1.05 | G42: 1.05 | H42: 1.05 | I42: 1.05 | J42: 1.05 | K42: 1.05 | L42: 1.05 | M42: 1.05 | N42: 1.05 | O42: 1.05 | P42: 1.05 | Q42: 1.05 | R42: 1.05 | S42: 1.05 | T42: 1.05 | U42: 1.05 | V42: 1.05 | W42: 1.05 | X42: 1.05 | Y42: 1.05 | Z42: 1.05 | AA42: 1.05 | AB42: 1.05 | AC42: 1.05 | AD42: 1.05 | AE42: 1.05 | AF42: 1.05 | AG42: 1.05 | AH42: 1.05 | AI42: 1.05 | AJ42: 1.05 | AK42: 1.05 | AL42: 1.05 | AM42: 1.05 | AN42: 1.05 | AO42: 1.05 | AP42: 1.05 | AQ42: 1.05 | AR42: 1.05 | AS42: 1.05 | AT42: 1.05 | AU42: 1.05 | AV42: 1.05 | AW42: 1.05 | AX42: 1.05 | AY42: 1.05 | AZ42: 1.05 | BA42: 1.05 | BB42: 1.05 | BC42: 1.05 | BD42: 1.05 | BE42: 1.05 | BF42: 1.05 | BG42: 1.05 | BH42: 1.05 | BI42: 1.05 | BJ42: 1.05 | BK42: 1.05 | BL42: 1.05 | BM42: 1.05 | BN42: 1.05
D43: =D41 -$D$6 -> 1 | E43: =$D43 -> 1 | F43: 1 | G43: 1 | H43: 1 | I43: 1 | J43: 1 | K43: 1 | L43: 1 | M43: 1 | N43: 1 | O43: 1 | P43: 1 | Q43: 1 | R43: 1 | S43: 1 | T43: 1 | U43: 1 | V43: 1 | W43: 1 | X43: 1 | Y43: 1 | Z43: 1 | AA43: 1 | AB43: 1 | AC43: 1 | AD43: 1 | AE43: 1 | AF43: 1 | AG43: 1 | AH43: 1 | AI43: 1 | AJ43: 1 | AK43: 1 | AL43: 1 | AM43: 1 | AN43: 1 | AO43: 1 | AP43: 1 | AQ43: 1 | AR43: 1 | AS43: 1 | AT43: 1 | AU43: 1 | AV43: 1 | AW43: 1 | AX43: 1 | AY43: 1 | AZ43: 1 | BA43: 1 | BB43: 1 | BC43: 1 | BD43: 1 | BE43: 1 | BF43: 1 | BG43: 1 | BH43: 1 | BI43: 1 | BJ43: 1 | BK43: 1 | BL43: 1 | BM43: 1 | BN43: 1
E44: =$D43-$D$6*0.5 -> 0.95 | F44: 0.95 | G44: 0.95 | H44: 0.95 | I44: 0.95 | J44: 0.95 | K44: 0.95 | L44: 0.95 | M44: 0.95 | N44: 0.95 | O44: 0.95 | P44: 0.95 | Q44: 0.95 | R44: 0.95 | S44: 0.95 | T44: 0.95 | U44: 0.95 | V44: 0.95 | W44: 0.95 | X44: 0.95 | Y44: 0.95 | Z44: 0.95 | AA44: 0.95 | AB44: 0.95 | AC44: 0.95 | AD44: 0.95 | AE44: 0.95 | AF44: 0.95 | AG44: 0.95 | AH44: 0.95 | AI44: 0.95 | AJ44: 0.95 | AK44: 0.95 | AL44: 0.95 | AM44: 0.95 | AN44: 0.95 | AO44: 0.95 | AP44: 0.95 | AQ44: 0.95 | AR44: 0.95 | AS44: 0.95 | AT44: 0.95 | AU44: 0.95 | AV44: 0.95 | AW44: 0.95 | AX44: 0.95 | AY44: 0.95 | AZ44: 0.95 | BA44: 0.95 | BB44: 0.95 | BC44: 0.95 | BD44: 0.95 | BE44: 0.95 | BF44: 0.95 | BG44: 0.95 | BH44: 0.95 | BI44: 0.95 | BJ44: 0.95 | BK44: 0.95 | BL44: 0.95 | BM44: 0.95 | BN44: 0.95
D45: =D43 -$D$6 -> 0.9 | E45: =$D45 -> 0.9 | F45: 0.9 | G45: 0.9 | H45: 0.9 | I45: 0.9 | J45: 0.9 | K45: 0.9 | L45: 0.9 | M45: 0.9 | N45: 0.9 | O45: 0.9 | P45: 0.9 | Q45: 0.9 | R45: 0.9 | S45: 0.9 | T45: 0.9 | U45: 0.9 | V45: 0.9 | W45: 0.9 | X45: 0.9 | Y45: 0.9 | Z45: 0.9 | AA45: 0.9 | AB45: 0.9 | AC45: 0.9 | AD45: 0.9 | AE45: 0.9 | AF45: 0.9 | AG45: 0.9 | AH45: 0.9 | AI45: 0.9 | AJ45: 0.9 | AK45: 0.9 | AL45: 0.9 | AM45: 0.9 | AN45: 0.9 | AO45: 0.9 | AP45: 0.9 | AQ45: 0.9 | AR45: 0.9 | AS45: 0.9 | AT45: 0.9 | AU45: 0.9 | AV45: 0.9 | AW45: 0.9 | AX45: 0.9 | AY45: 0.9 | AZ45: 0.9 | BA45: 0.9 | BB45: 0.9 | BC45: 0.9 | BD45: 0.9 | BE45: 0.9 | BF45: 0.9 | BG45: 0.9 | BH45: 0.9 | BI45: 0.9 | BJ45: 0.9 | BK45: 0.9 | BL45: 0.9 | BM45: 0.9 | BN45: 0.9
E46: =$D45-$D$6*0.5 -> 0.85 | F46: 0.85 | G46: 0.85 | H46: 0.85 | I46: 0.85 | J46: 0.85 | K46: 0.85 | L46: 0.85 | M46: 0.85 | N46: 0.85 | O46: 0.85 | P46: 0.85 | Q46: 0.85 | R46: 0.85 | S46: 0.85 | T46: 0.85 | U46: 0.85 | V46: 0.85 | W46: 0.85 | X46: 0.85 | Y46: 0.85 | Z46: 0.85 | AA46: 0.85 | AB46: 0.85 | AC46: 0.85 | AD46: 0.85 | AE46: 0.85 | AF46: 0.85 | AG46: 0.85 | AH46: 0.85 | AI46: 0.85 | AJ46: 0.85 | AK46: 0.85 | AL46: 0.85 | AM46: 0.85 | AN46: 0.85 | AO46: 0.85 | AP46: 0.85 | AQ46: 0.85 | AR46: 0.85 | AS46: 0.85 | AT46: 0.85 | AU46: 0.85 | AV46: 0.85 | AW46: 0.85 | AX46: 0.85 | AY46: 0.85 | AZ46: 0.85 | BA46: 0.85 | BB46: 0.85 | BC46: 0.85 | BD46: 0.85 | BE46: 0.85 | BF46: 0.85 | BG46: 0.85 | BH46: 0.85 | BI46: 0.85 | BJ46: 0.85 | BK46: 0.85 | BL46: 0.85 | BM46: 0.85 | BN46: 0.85
D47: =D45 -$D$6 -> 0.8 | E47: =$D47 -> 0.8 | F47: 0.8 | G47: 0.8 | H47: 0.8 | I47: 0.8 | J47: 0.8 | K47: 0.8 | L47: 0.8 | M47: 0.8 | N47: 0.8 | O47: 0.8 | P47: 0.8 | Q47: 0.8 | R47: 0.8 | S47: 0.8 | T47: 0.8 | U47: 0.8 | V47: 0.8 | W47: 0.8 | X47: 0.8 | Y47: 0.8 | Z47: 0.8 | AA47: 0.8 | AB47: 0.8 | AC47: 0.8 | AD47: 0.8 | AE47: 0.8 | AF47: 0.8 | AG47: 0.8 | AH47: 0.8 | AI47: 0.8 | AJ47: 0.8 | AK47: 0.8 | AL47: 0.8 | AM47: 0.8 | AN47: 0.8 | AO47: 0.8 | AP47: 0.8 | AQ47: 0.8 | AR47: 0.8 | AS47: 0.8 | AT47: 0.8 | AU47: 0.8 | AV47: 0.8 | AW47: 0.8 | AX47: 0.8 | AY47: 0.8 | AZ47: 0.8 | BA47: 0.8 | BB47: 0.8 | BC47: 0.8 | BD47: 0.8 | BE47: 0.8 | BF47: 0.8 | BG47: 0.8 | BH47: 0.8 | BI47: 0.8 | BJ47: 0.8 | BK47: 0.8 | BL47: 0.8 | BM47: 0.8 | BN47: 0.8
E48: =$D47-$D$6*0.5 -> 0.75 | F48: 0.75 | G48: 0.75 | H48: 0.75 | I48: 0.75 | J48: 0.75 | K48: 0.75 | L48: 0.75 | M48: 0.75 | N48: 0.75 | O48: 0.75 | P48: 0.75 | Q48: 0.75 | R48: 0.75 | S48: 0.75 | T48: 0.75 | U48: 0.75 | V48: 0.75 | W48: 0.75 | X48: 0.75 | Y48: 0.75 | Z48: 0.75 | AA48: 0.75 | AB48: 0.75 | AC48: 0.75 | AD48: 0.75 | AE48: 0.75 | AF48: 0.75 | AG48: 0.75 | AH48: 0.75 | AI48: 0.75 | AJ48: 0.75 | AK48: 0.75 | AL48: 0.75 | AM48: 0.75 | AN48: 0.75 | AO48: 0.75 | AP48: 0.75 | AQ48: 0.75 | AR48: 0.75 | AS48: 0.75 | AT48: 0.75 | AU48: 0.75 | AV48: 0.75 | AW48: 0.75 | AX48: 0.75 | AY48: 0.75 | AZ48: 0.75 | BA48: 0.75 | BB48: 0.75 | BC48: 0.75 | BD48: 0.75 | BE48: 0.75 | BF48: 0.75 | BG48: 0.75 | BH48: 0.75 | BI48: 0.75 | BJ48: 0.75 | BK48: 0.75 | BL48: 0.75 | BM48: 0.75 | BN48: 0.75
D49: =D47 -$D$6 -> 0.7 | E49: =$D49 -> 0.7 | F49: 0.7 | G49: 0.7 | H49: 0.7 | I49: 0.7 | J49: 0.7 | K49: 0.7 | L49: 0.7 | M49: 0.7 | N49: 0.7 | O49: 0.7 | P49: 0.7 | Q49: 0.7 | R49: 0.7 | S49: 0.7 | T49: 0.7 | U49: 0.7 | V49: 0.7 | W49: 0.7 | X49: 0.7 | Y49: 0.7 | Z49: 0.7 | AA49: 0.7 | AB49: 0.7 | AC49: 0.7 | AD49: 0.7 | AE49: 0.7 | AF49: 0.7 | AG49: 0.7 | AH49: 0.7 | AI49: 0.7 | AJ49: 0.7 | AK49: 0.7 | AL49: 0.7 | AM49: 0.7 | AN49: 0.7 | AO49: 0.7 | AP49: 0.7 | AQ49: 0.7 | AR49: 0.7 | AS49: 0.7 | AT49: 0.7 | AU49: 0.7 | AV49: 0.7 | AW49: 0.7 | AX49: 0.7 | AY49: 0.7 | AZ49: 0.7 | BA49: 0.7 | BB49: 0.7 | BC49: 0.7 | BD49: 0.7 | BE49: 0.7 | BF49: 0.7 | BG49: 0.7 | BH49: 0.7 | BI49: 0.7 | BJ49: 0.7 | BK49: 0.7 | BL49: 0.7 | BM49: 0.7 | BN49: 0.7
E50: =$D49-$D$6*0.5 -> 0.65 | F50: 0.65 | G50: 0.65 | H50: 0.65 | I50: 0.65 | J50: 0.65 | K50: 0.65 | L50: 0.65 | M50: 0.65 | N50: 0.65 | O50: 0.65 | P50: 0.65 | Q50: 0.65 | R50: 0.65 | S50: 0.65 | T50: 0.65 | U50: 0.65 | V50: 0.65 | W50: 0.65 | X50: 0.65 | Y50: 0.65 | Z50: 0.65 | AA50: 0.65 | AB50: 0.65 | AC50: 0.65 | AD50: 0.65 | AE50: 0.65 | AF50: 0.65 | AG50: 0.65 | AH50: 0.65 | AI50: 0.65 | AJ50: 0.65 | AK50: 0.65 | AL50: 0.65 | AM50: 0.65 | AN50: 0.65 | AO50: 0.65 | AP50: 0.65 | AQ50: 0.65 | AR50: 0.65 | AS50: 0.65 | AT50: 0.65 | AU50: 0.65 | AV50: 0.65 | AW50: 0.65 | AX50: 0.65 | AY50: 0.65 | AZ50: 0.65 | BA50: 0.65 | BB50: 0.65 | BC50: 0.65 | BD50: 0.65 | BE50: 0.65 | BF50: 0.65 | BG50: 0.65 | BH50: 0.65 | BI50: 0.65 | BJ50: 0.65 | BK50: 0.65 | BL50: 0.65 | BM50: 0.65 | BN50: 0.65
D51: =D49 -$D$6 -> 0.6 | E51: =$D51 -> 0.6 | F51: 0.6 | G51: 0.6 | H51: 0.6 | I51: 0.6 | J51: 0.6 | K51: 0.6 | L51: 0.6 | M51: 0.6 | N51: 0.6 | O51: 0.6 | P51: 0.6 | Q51: 0.6 | R51: 0.6 | S51: 0.6 | T51: 0.6 | U51: 0.6 | V51: 0.6 | W51: 0.6 | X51: 0.6 | Y51: 0.6 | Z51: 0.6 | AA51: 0.6 | AB51: 0.6 | AC51: 0.6 | AD51: 0.6 | AE51: 0.6 | AF51: 0.6 | AG51: 0.6 | AH51: 0.6 | AI51: 0.6 | AJ51: 0.6 | AK51: 0.6 | AL51: 0.6 | AM51: 0.6 | AN51: 0.6 | AO51: 0.6 | AP51: 0.6 | AQ51: 0.6 | AR51: 0.6 | AS51: 0.6 | AT51: 0.6 | AU51: 0.6 | AV51: 0.6 | AW51: 0.6 | AX51: 0.6 | AY51: 0.6 | AZ51: 0.6 | BA51: 0.6 | BB51: 0.6 | BC51: 0.6 | BD51: 0.6 | BE51: 0.6 | BF51: 0.6 | BG51: 0.6 | BH51: 0.6 | BI51: 0.6 | BJ51: 0.6 | BK51: 0.6 | BL51: 0.6 | BM51: 0.6 | BN51: 0.6
E52: =$D51-$D$6*0.5 -> 0.55 | F52: 0.55 | G52: 0.55 | H52: 0.55 | I52: 0.55 | J52: 0.55 | K52: 0.55 | L52: 0.55 | M52: 0.55 | N52: 0.55 | O52: 0.55 | P52: 0.55 | Q52: 0.55 | R52: 0.55 | S52: 0.55 | T52: 0.55 | U52: 0.55 | V52: 0.55 | W52: 0.55 | X52: 0.55 | Y52: 0.55 | Z52: 0.55 | AA52: 0.55 | AB52: 0.55 | AC52: 0.55 | AD52: 0.55 | AE52: 0.55 | AF52: 0.55 | AG52: 0.55 | AH52: 0.55 | AI52: 0.55 | AJ52: 0.55 | AK52: 0.55 | AL52: 0.55 | AM52: 0.55 | AN52: 0.55 | AO52: 0.55 | AP52: 0.55 | AQ52: 0.55 | AR52: 0.55 | AS52: 0.55 | AT52: 0.55 | AU52: 0.55 | AV52: 0.55 | AW52: 0.55 | AX52: 0.55 | AY52: 0.55 | AZ52: 0.55 | BA52: 0.55 | BB52: 0.55 | BC52: 0.55 | BD52: 0.55 | BE52: 0.55 | BF52: 0.55 | BG52: 0.55 | BH52: 0.55 | BI52: 0.55 | BJ52: 0.55 | BK52: 0.55 | BL52: 0.55 | BM52: 0.55 | BN52: 0.55
D53: =D51 -$D$6 -> 0.5 | E53: =$D53 -> 0.5 | F53: 0.5 | G53: 0.5 | H53: 0.5 | I53: 0.5 | J53: 0.5 | K53: 0.5 | L53: 0.5 | M53: 0.5 | N53: 0.5 | O53: 0.5 | P53: 0.5 | Q53: 0.5 | R53: 0.5 | S53: 0.5 | T53: 0.5 | U53: 0.5 | V53: 0.5 | W53: 0.5 | X53: 0.5 | Y53: 0.5 | Z53: 0.5 | AA53: 0.5 | AB53: 0.5 | AC53: 0.5 | AD53: 0.5 | AE53: 0.5 | AF53: 0.5 | AG53: 0.5 | AH53: 0.5 | AI53: 0.5 | AJ53: 0.5 | AK53: 0.5 | AL53: 0.5 | AM53: 0.5 | AN53: 0.5 | AO53: 0.5 | AP53: 0.5 | AQ53: 0.5 | AR53: 0.5 | AS53: 0.5 | AT53: 0.5 | AU53: 0.5 | AV53: 0.5 | AW53: 0.5 | AX53: 0.5 | AY53: 0.5 | AZ53: 0.5 | BA53: 0.5 | BB53: 0.5 | BC53: 0.5 | BD53: 0.5 | BE53: 0.5 | BF53: 0.5 | BG53: 0.5 | BH53: 0.5 | BI53: 0.5 | BJ53: 0.5 | BK53: 0.5 | BL53: 0.5 | BM53: 0.5 | BN53: 0.5
E54: =$D53-$D$6*0.5 -> 0.45 | F54: 0.45 | G54: 0.45 | H54: 0.45 | I54: 0.45 | J54: 0.45 | K54: 0.45 | L54: 0.45 | M54: 0.45 | N54: 0.45 | O54: 0.45 | P54: 0.45 | Q54: 0.45 | R54: 0.45 | S54: 0.45 | T54: 0.45 | U54: 0.45 | V54: 0.45 | W54: 0.45 | X54: 0.45 | Y54: 0.45 | Z54: 0.45 | AA54: 0.45 | AB54: 0.45 | AC54: 0.45 | AD54: 0.45 | AE54: 0.45 | AF54: 0.45 | AG54: 0.45 | AH54: 0.45 | AI54: 0.45 | AJ54: 0.45 | AK54: 0.45 | AL54: 0.45 | AM54: 0.45 | AN54: 0.45 | AO54: 0.45 | AP54: 0.45 | AQ54: 0.45 | AR54: 0.45 | AS54: 0.45 | AT54: 0.45 | AU54: 0.45 | AV54: 0.45 | AW54: 0.45 | AX54: 0.45 | AY54: 0.45 | AZ54: 0.45 | BA54: 0.45 | BB54: 0.45 | BC54: 0.45 | BD54: 0.45 | BE54: 0.45 | BF54: 0.45 | BG54: 0.45 | BH54: 0.45 | BI54: 0.45 | BJ54: 0.45 | BK54: 0.45 | BL54: 0.45 | BM54: 0.45 | BN54: 0.45
D55: =D53 -$D$6 -> 0.4 | E55: =$D55 -> 0.4 | F55: 0.4 | G55: 0.4 | H55: 0.4 | I55: 0.4 | J55: 0.4 | K55: 0.4 | L55: 0.4 | M55: 0.4 | N55: 0.4 | O55: 0.4 | P55: 0.4 | Q55: 0.4 | R55: 0.4 | S55: 0.4 | T55: 0.4 | U55: 0.4 | V55: 0.4 | W55: 0.4 | X55: 0.4 | Y55: 0.4 | Z55: 0.4 | AA55: 0.4 | AB55: 0.4 | AC55: 0.4 | AD55: 0.4 | AE55: 0.4 | AF55: 0.4 | AG55: 0.4 | AH55: 0.4 | AI55: 0.4 | AJ55: 0.4 | AK55: 0.4 | AL55: 0.4 | AM55: 0.4 | AN55: 0.4 | AO55: 0.4 | AP55: 0.4 | AQ55: 0.4 | AR55: 0.4 | AS55: 0.4 | AT55: 0.4 | AU55: 0.4 | AV55: 0.4 | AW55: 0.4 | AX55: 0.4 | AY55: 0.4 | AZ55: 0.4 | BA55: 0.4 | BB55: 0.4 | BC55: 0.4 | BD55: 0.4 | BE55: 0.4 | BF55: 0.4 | BG55: 0.4 | BH55: 0.4 | BI55: 0.4 | BJ55: 0.4 | BK55: 0.4 | BL55: 0.4 | BM55: 0.4 | BN55: 0.4
E56: =$D55-$D$6*0.5 -> 0.35 | F56: 0.35 | G56: 0.35 | H56: 0.35 | I56: 0.35 | J56: 0.35 | K56: 0.35 | L56: 0.35 | M56: 0.35 | N56: 0.35 | O56: 0.35 | P56: 0.35 | Q56: 0.35 | R56: 0.35 | S56: 0.35 | T56: 0.35 | U56: 0.35 | V56: 0.35 | W56: 0.35 | X56: 0.35 | Y56: 0.35 | Z56: 0.35 | AA56: 0.35 | AB56: 0.35 | AC56: 0.35 | AD56: 0.35 | AE56: 0.35 | AF56: 0.35 | AG56: 0.35 | AH56: 0.35 | AI56: 0.35 | AJ56: 0.35 | AK56: 0.35 | AL56: 0.35 | AM56: 0.35 | AN56: 0.35 | AO56: 0.35 | AP56: 0.35 | AQ56: 0.35 | AR56: 0.35 | AS56: 0.35 | AT56: 0.35 | AU56: 0.35 | AV56: 0.35 | AW56: 0.35 | AX56: 0.35 | AY56: 0.35 | AZ56: 0.35 | BA56: 0.35 | BB56: 0.35 | BC56: 0.35 | BD56: 0.35 | BE56: 0.35 | BF56: 0.35 | BG56: 0.35 | BH56: 0.35 | BI56: 0.35 | BJ56: 0.35 | BK56: 0.35 | BL56: 0.35 | BM56: 0.35 | BN56: 0.35
D57: =D55 -$D$6 -> 0.3 | E57: =$D57 -> 0.3 | F57: =$D57 -> 0.3 | G57: 0.3 | H57: 0.3 | I57: 0.3 | J57: 0.3 | K57: 0.3 | L57: 0.3 | M57: 0.3 | N57: 0.3 | O57: 0.3 | P57: 0.3 | Q57: 0.3 | R57: 0.3 | S57: 0.3 | T57: 0.3 | U57: 0.3 | V57: 0.3 | W57: 0.3 | X57: 0.3 | Y57: 0.3 | Z57: 0.3 | AA57: 0.3 | AB57: 0.3 | AC57: 0.3 | AD57: 0.3 | AE57: 0.3 | AF57: 0.3 | AG57: 0.3 | AH57: 0.3 | AI57: 0.3 | AJ57: 0.3 | AK57: 0.3 | AL57: 0.3 | AM57: 0.3 | AN57: 0.3 | AO57: 0.3 | AP57: 0.3 | AQ57: 0.3 | AR57: 0.3 | AS57: 0.3 | AT57: 0.3 | AU57: 0.3 | AV57: 0.3 | AW57: 0.3 | AX57: 0.3 | AY57: 0.3 | AZ57: 0.3 | BA57: 0.3 | BB57: 0.3 | BC57: 0.3 | BD57: 0.3 | BE57: 0.3 | BF57: 0.3 | BG57: 0.3 | BH57: 0.3 | BI57: 0.3 | BJ57: 0.3 | BK57: 0.3 | BL57: 0.3 | BM57: 0.3 | BN57: 0.3
E58: =$D57-$D$6*0.5 -> 0.25 | F58: 0.25 | G58: 0.25 | H58: 0.25 | I58: 0.25 | J58: 0.25 | K58: 0.25 | L58: 0.25 | M58: 0.25 | N58: 0.25 | O58: 0.25 | P58: 0.25 | Q58: 0.25 | R58: 0.25 | S58: 0.25 | T58: 0.25 | U58: 0.25 | V58: 0.25 | W58: 0.25 | X58: 0.25 | Y58: 0.25 | Z58: 0.25 | AA58: 0.25 | AB58: 0.25 | AC58: 0.25 | AD58: 0.25 | AE58: 0.25 | AF58: 0.25 | AG58: 0.25 | AH58: 0.25 | AI58: 0.25 | AJ58: 0.25 | AK58: 0.25 | AL58: 0.25 | AM58: 0.25 | AN58: 0.25 | AO58: 0.25 | AP58: 0.25 | AQ58: 0.25 | AR58: 0.25 | AS58: 0.25 | AT58: 0.25 | AU58: 0.25 | AV58: 0.25 | AW58: 0.25 | AX58: 0.25 | AY58: 0.25 | AZ58: 0.25 | BA58: 0.25 | BB58: 0.25 | BC58: 0.25 | BD58: 0.25 | BE58: 0.25 | BF58: 0.25 | BG58: 0.25 | BH58: 0.25 | BI58: 0.25 | BJ58: 0.25 | BK58: 0.25 | BL58: 0.25 | BM58: 0.25 | BN58: 0.25
D59: =D57 -$D$6 -> 0.2 | E59: =$D59 -> 0.2 | F59: =$D59 -> 0.2 | G59: 0.2 | H59: 0.2 | I59: 0.2 | J59: 0.2 | K59: 0.2 | L59: 0.2 | M59: 0.2 | N59: 0.2 | O59: 0.2 | P59: 0.2 | Q59: 0.2 | R59: 0.2 | S59: 0.2 | T59: 0.2 | U59: 0.2 | V59: 0.2 | W59: 0.2 | X59: 0.2 | Y59: 0.2 | Z59: 0.2 | AA59: 0.2 | AB59: 0.2 | AC59: 0.2 | AD59: 0.2 | AE59: 0.2 | AF59: 0.2 | AG59: 0.2 | AH59: 0.2 | AI59: 0.2 | AJ59: 0.2 | AK59: 0.2 | AL59: 0.2 | AM59: 0.2 | AN59: 0.2 | AO59: 0.2 | AP59: 0.2 | AQ59: 0.2 | AR59: 0.2 | AS59: 0.2 | AT59: 0.2 | AU59: 0.2 | AV59: 0.2 | AW59: 0.2 | AX59: 0.2 | AY59: 0.2 | AZ59: 0.2 | BA59: 0.2 | BB59: 0.2 | BC59: 0.2 | BD59: 0.2 | BE59: 0.2 | BF59: 0.2 | BG59: 0.2 | BH59: 0.2 | BI59: 0.2 | BJ59: 0.2 | BK59: 0.2 | BL59: 0.2 | BM59: 0.2 | BN59: 0.2
E60: =$D59-$D$6*0.5 -> 0.15 | F60: 0.15 | G60: 0.15 | H60: 0.15 | I60: 0.15 | J60: 0.15 | K60: 0.15 | L60: 0.15 | M60: 0.15 | N60: 0.15 | O60: 0.15 | P60: 0.15 | Q60: 0.15 | R60: 0.15 | S60: 0.15 | T60: 0.15 | U60: 0.15 | V60: 0.15 | W60: 0.15 | X60: 0.15 | Y60: 0.15 | Z60: 0.15 | AA60: 0.15 | AB60: 0.15 | AC60: 0.15 | AD60: 0.15 | AE60: 0.15 | AF60: 0.15 | AG60: 0.15 | AH60: 0.15 | AI60: 0.15 | AJ60: 0.15 | AK60: 0.15 | AL60: 0.15 | AM60: 0.15 | AN60: 0.15 | AO60: 0.15 | AP60: 0.15 | AQ60: 0.15 | AR60: 0.15 | AS60: 0.15 | AT60: 0.15 | AU60: 0.15 | AV60: 0.15 | AW60: 0.15 | AX60: 0.15 | AY60: 0.15 | AZ60: 0.15 | BA60: 0.15 | BB60: 0.15 | BC60: 0.15 | BD60: 0.15 | BE60: 0.15 | BF60: 0.15 | BG60: 0.15 | BH60: 0.15 | BI60: 0.15 | BJ60: 0.15 | BK60: 0.15 | BL60: 0.15 | BM60: 0.15 | BN60: 0.15
B61: Day | E61: 1 | F61: 2 | G61: 3 | H61: 4 | I61: 5 | J61: 6 | K61: 7 | L61: 8 | M61: 9 | N61: 10 | O61: 11 | P61: 12 | Q61: 13 | R61: 14 | S61: 15 | T61: 16 | U61: 17 | V61: 18 | W61: 19 | X61: 20 | Y61: 21 | Z61: 22 | AA61: 23 | AB61: 24 | AC61: 25 | AD61: 26 | AE61: 27 | AF61: 28 | AG61: 29 | AH61: 30 | AI61: 31 | AJ61: 1 | AK61: 2 | AL61: 3 | AM61: 4 | AN61: 5 | AO61: 6 | AP61: 7 | AQ61: 8 | AR61: 9 | AS61: 10 | AT61: 11 | AU61: 12 | AV61: 13 | AW61: 14 | AX61: 15 | AY61: 16 | AZ61: 17 | BA61: 18 | BB61: 19 | BC61: 20 | BD61: 21 | BE61: 22 | BF61: 23 | BG61: 24 | BH61: 25 | BI61: 26 | BJ61: 27 | BK61: 28 | BL61: 29 | BM61: 30 | BN61: 31
B62: Month
B63: Audit
B65: ©2014-2025 Master Fluid Solutions | Because conditions of use are beyond our control, no guarantee, representation, or warranty expressed or implied is made. Consult Master Chemical Corporation for further information or appropriate operating ranges. | Updated: 2025-05-07

Sheet Math-DO-NOT-Delete
A1: prod_name_tm_na_en_us | B1: Work Refractometer Factor Brix NA en-US | C1: Work Titration Factor CGF 1 NA en-US | D1: Work Digital Titration NA en-US | E1: m_min_target_concentration | F1: m_target_concentration | G1: m_max_target_concentration | H1: Yellow Rows | I1: 5 | K1: Date Removed | L1: REMOVED PRODUCT | M1: %Brix RI Factor Digital Refractometer | N1: Coolant Titration Factor CGF-1 | O1: Digital Titration Factor | P1: m_min_target_concentration | Q1: m_target_concentration | R1: m_max_target_concentration
A2: TRIM SOL® | B2: 1 | C2: 6.25 | D2: 0.225 | E2: 6 | F2: 7.5 | G2: 9 | H2: Display Factor | I2: 3.5 | L2: TRIM® C275
A3: TRIM SOL® LC sf | B3: 1 | E3: 6 | F3: 7.5 | G3: 9 | H3: Total Rows | I3: 54 | K3: 2016-12-22 | L3: TRIM® CE/CE2 nd | M3: 1.05 | N3: N/A | O3: N/A | P3: 6 | Q3: 7.5 | R3: 9
A4: TRIM SOL® nd | B4: 1 | C4: 6.25 | D4: 0.225 | E4: 6 | F4: 7.5 | G4: 9 | L4: TRIM® CLEAR
A5: TRIM® 229 | B5: 1.3 | C5: 0.11 | D5: 0.0032 | E5: 0.5 | F5: 1 | G5: 2 | L5: CoolPAK C2000
A6: TRIM® 9106 | B6: 2.6 | C6: 0.49 | D6: 0.01 | E6: 5 | F6: 6 | G6: 7 | I6: Makeup | L6: TRIM® E190
A7: TRIM® C118 | B7: 3.4 | C7: 0.6 | D7: 0.0189 | E7: 6 | F7: 7.5 | G7: 9 | I7: 0.1 | L7: TRIM® MIST
A8: TRIM® C270 | B8: 3.3 | C8: 0.56 | D8: 0.0175 | E8: 6 | F8: 7.5 | G8: 9 | I8: 0.2 | L8: TRIM® MicroSol® 185
A9: TRIM® C270 bd | B9: 3.3 | C9: 0.561 | D9: 0.0175 | E9: 6 | F9: 7.5 | G9: 9 | I9: 0.3 | L9: TRIM® MicroSol® 555
A10: TRIM® C270CG | B10: 3.3 | C10: 0.84 | D10: 0.0201 | E10: 6 | F10: 7.5 | G10: 9 | I10: 0.4 | L10: TRIM® MicroSol® 606slf
A11: TRIM® C270CG bd | B11: 3.3 | C11: 0.84 | D11: 0.0201 | E11: 6 | F11: 7.5 | G11: 9 | I11: 0.5 | L11: TRIM® SC125
A12: TRIM® C276 | B12: 3.1 | C12: 0.66 | D12: 0.0173 | E12: 6 | F12: 7.5 | G12: 9 | I12: 0.6 | L12: TRIM® SC210
A13: TRIM® C286 | B13: 1.8 | D13: 0.0176 | E13: 5 | F13: 5.5 | G13: 6 | I13: 0.7 | L13: TRIM® SC610
A14: TRIM® C290 | B14: 2.4 | C14: 1 | D14: 0.0264 | E14: 7 | F14: 8 | G14: 9 | I14: 0.8 | L14: TRIM SOL® LC | Q14: 7.5 | R14: 9
A15: TRIM® C350 | B15: 1.8 | C15: 0.73 | D15: 0.0282 | E15: 7 | F15: 8 | G15: 9 | I15: 0.9 | K15: 2016-01-26 | L15: TRIM® VX | M15: 1.1 | N15: 2 | O15: 0.072 | P15: 6 | Q15: 7.5 | R15: 9
A16: TRIM® C390 | B16: 1.8 | C16: 0.67 | D16: 0.0187 | E16: 7 | F16: 8 | G16: 9 | I16: 1 | K16: 2016-06-09 | L16: TRIM® C270PR | M16: 3.1 | N16: 0.61 | O16: N/A | P16: 6
A17: TRIM® E206 | B17: 1 | C17: 2 | D17: 0.0582 | E17: 6 | F17: 7 | G17: 8
A18: TRIM® E206 nd | B18: 1 | C18: 2 | D18: 0.0582 | E18: 6 | F18: 7 | G18: 8
A19: TRIM® E715 | B19: 1 | C19: 0.98 | D19: 0.0271 | E19: 6 | F19: 7.5 | G19: 10
A20: TRIM® E860 | B20: 1.1 | C20: 0.78 | D20: 0.03 | E20: 7 | F20: 8 | G20: 10
A21: TRIM® E923 | B21: 0.9 | C21: 0.62 | D21: 0.0192 | E21: 7 | F21: 9 | G21: 15
A22: TRIM® E925 | B22: 1 | C22: 0.8 | D22: 0.0239 | E22: 6 | F22: 7.5 | G22: 9
A23: TRIM® E925AE | B23: 1 | C23: 0.69 | D23: 0.0244 | E23: 6 | F23: 7.5 | G23: 9
A24: TRIM® HD | B24: 2.7 | C24: 0.68 | D24: 0.0196 | E24: 6 | F24: 7.5 | G24: 9
A25: TRIM® HyperSol™ 888NXT | B25: 2.2 | C25: 0.81 | D25: 0.0217 | E25: 5 | F25: 8 | G25: 12
A26: TRIM® MicroSol® 465 | B26: 2 | C26: 0.92 | D26: 0.04 | E26: 6 | F26: 7.5 | G26: 9
A27: TRIM® MicroSol® 555 | B27: 1.4 | C27: 0.84 | D27: 0.0202 | E27: 6 | F27: 7.5 | G27: 9
A28: TRIM® MicroSol® 585XT | B28: 1.2 | C28: 0.69 | D28: 0.0213 | E28: 6 | F28: 7.5 | G28: 9
A29: TRIM® MicroSol® 590XT | B29: 1.7 | C29: 0.75 | D29: 0.0202 | E29: 6 | F29: 7.5 | G29: 9
A30: TRIM® MicroSol® 606 | B30: 1 | C30: 2 | D30: 0.0582 | E30: 6 | F30: 7 | G30: 8
A31: TRIM® MicroSol® 606 bd | B31: 1 | C31: 2 | D31: 0.0582 | E31: 6 | F31: 7 | G31: 8
A32: TRIM® MicroSol® 642RX | B32: 1 | C32: 0.63 | D32: 0.0173 | E32: 6 | F32: 7.5 | G32: 9
A33: TRIM® MicroSol® 685XT | B33: 1.2 | C33: 0.74 | D33: 0.0198 | E33: 6 | F33: 7.5 | G33: 9
A34: TRIM® MicroSol® 690XT | B34: 1.2 | C34: 0.75 | D34: 0.0164 | E34: 6 | F34: 7.5 | G34: 9
A35: TRIM® MicroSol® 692XT | B35: 1 | C35: 0.63 | D35: 0.0173 | E35: 6 | F35: 7.5 | G35: 9
A36: TRIM® SC230 | B36: 3.3 | C36: 0.561 | D36: 0.0175 | E36: 6 | F36: 7.5 | G36: 9
A37: TRIM® SC230CG | B37: 3.3 | C37: 0.84 | D37: 0.0201 | E37: 6 | F37: 7.5 | G37: 9
A38: TRIM® SC520 | B38: 1.8 | C38: 0.59 | D38: 0.0177 | E38: 6 | F38: 7.5 | G38: 9
A39: TRIM® SC536 | B39: 3.1 | C39: 0.66 | D39: 0.0173 | E39: 6 | F39: 7.5 | G39: 9
A40: TRIM® SC620 | B40: 1.7 | C40: 0.63 | D40: 0.0169 | E40: 6 | F40: 7.5 | G40: 9
A41: TRIM® VHP® E200PW | B41: 0.9 | E41: 5 | F41: 6.5 | G41: 7.5
A42: TRIM® VHP® E210 | B42: 0.9 | E42: 5 | F42: 6.5 | G42: 7.5
A43: TRIM® VHP® E320 | B43: 0.9 | E43: 5 | F43: 6.5 | G43: 7.5
